{"text_format":"1","workbook":"xlsx","n_sheets":12,"sheets":["Instructions & Notes","FormB_CPP_OA","FormA_CPP_OA_Q1","FormA_CPP_OA_Q2","FormA_CPP_OA_Q3","FormA_CPP_OA_Q4","Annexure-1","Annexure-2","StateUTs","DC Sectors with Thresholds","Targets","Supporting Sheet"],"not_rendered":{"charts":0,"images":4,"macros":1,"external_links":67,"defined_names":3008,"comments":0,"pivot_tables":0},"unopened":[],"bounds":{"document_bytes":16777216,"sheet_cells":100000,"rows_first":2000,"rows_last":500,"rows_between":2000,"halvings":0,"cell_chars":16384,"cell_head_chars":4096},"cells_cut":0,"cells_raw":0,"read":"whole","date_system":"1900"}

{"sheet":"Instructions & Notes","index":0,"n_rows":11,"n_cols":3,"rows_kept":11,"cut":false,"hidden":false,"merged":[[1,1,1,2],[2,1,2,2]]}
[]
[null,"RCO Compliance Data reporting by DCs with CPP & Open Access "]
[null,"Important Instructions and Notes:"]
[null,1,"This excel workbook contains the following worksheets:\n●  Form B (Worksheet name \"FormB_CPP_OA\") - The Annual Energy Consumption Details will appear in this worksheet\n●  Form A (Four Worksheets named \"FormA_CPP_OA_Q1\" to \"FormA_CPP_OA_Q4\") - The Quarterly Energy Consumption Details are to be entered in this sheet\n●  Annexure-1 (Worksheet name \"Annexure-1\") - This worksheet is to be used to enter all electricity generated in CPP for all quarters, and calculate the generation, net of auxiliary power consumption. \n●  Annexure-2 (Worksheet name \"Annexure-2\") - This sheet is to be used only in case of consumption of Green Hydrogen. The sheet estimates the electrical energy equivalent of Green Hydrogen consumed."]
[null,2,"Name, Address and other basic details of Obligated Designated Consumers to be entered in Form B (in Worksheet named \"FormB_CPP_OA\"). These details will be populated automatically in other sheets based on input in Form B"]
[null,3,"Renewable Consumption Obligations (%Target) specified by MoP will be auto-populated in the Form B and all Form As, once the Target Year (i.e. the financial year for which RCO Compliance is being evaluated) and Location (State) of the Designated Consumer is entered in Form B (in Worksheet named \"FormB_CPP_OA\")."]
[null,4,"Electrical Energy Consumption is to be entered in Million Units (MU) throughout all worksheets in this workbook. "]
[null,5,"Total Energy Consumption and Non-fossil Energy Consumption details to be entered in Form A for each of the respective Quarters (in Worksheets named \"FormA_CPP_OA_Q1\" to \"FormA_CPP_OA_Q4\"). Annual details will be populated from these sheets into Form B"]
[null,6,"Please refer carefully to the Legend and Notes provided on each worksheet while filling in the details"]
[null,7,"In case of combustion of non-fossil fuels in CPP, and for WHR system including auxiliary firing of fuel, worksheet named \"Annexure - 1\" should be used along with the values brought over from the Co-firing and WHR tool. In such cases, the duly populated formats from Co-firing and WHR tool should be appended along with this annexure. Calculations will be done in the tool and in Annexure - 1 and results will be populated in Form A for the respective quarter"]
[null,8,"In case of consumption of Green Hydrogen, the quarter wise details are to be filled in the Worksheet named \"Annexure-2\". Calculations will be done in the worksheet and results will be populated in Form A for the respective quarter"]

{"sheet":"FormB_CPP_OA","index":1,"n_rows":58,"n_cols":5,"rows_kept":58,"cut":false,"hidden":false,"merged":[[17,1,17,4],[1,1,1,4],[11,1,11,4],[8,2,8,4],[9,2,9,4],[2,2,2,4],[3,2,3,4],[5,2,5,4],[6,2,6,4],[7,2,7,4],[4,2,4,4],[46,1,46,4],[23,1,23,4],[47,1,47,4],[48,1,48,4],[51,1,51,4],[49,1,49,4],[35,1,35,4],[45,1,45,4]]}
[]
[null,"ANNUAL RCO COMPLIANCE DECLARATION FORM (FORM B) - DCs with CPP & Open Access"]
[null,"Name of Obligated Designated Consumer"]
[null,"Address"]
[null,"Energy Intensive Sector of Designated Consumer"]
[null,"Registration No. of Obligated Designated Consumer"]
[null,"Type of obligation(s) of Obligated Designated Consumer#"]
[null,"Target Year FY (__-__)"]
[null,"Location (State)"]
[null,"State Category",{"$f":"IF(ISBLANK(C9),\"\",VLOOKUP(C9,StateUTs!$B$2:$C$37,2))","v":""}]
[null,"Particulars","Nomenclature","Unit","Total Energy"]
[null,"Part A! – Gross Total Energy Consumption (Fossil based + Non-fossil based)"]
[null,"Gross Total Energy Consumption for Quarter 1","A","MU",{"$f":"FormA_CPP_OA_Q1!E39","v":0}]
[null,"Gross Total Energy Consumption for Quarter 2","B","MU",{"$f":"FormA_CPP_OA_Q2!E39","v":0}]
[null,"Gross Total Energy Consumption for Quarter 3","C","MU",{"$f":"FormA_CPP_OA_Q3!E39","v":0}]
[null,"Gross Total Energy Consumption for Quarter 4","D","MU",{"$f":"FormA_CPP_OA_Q4!E39","v":0}]
[null,"Gross Total Energy Consumption for Target Financial Year","E = A+B+C+D","MU",{"$f":"SUM(E13:E16)","v":0}]
[null,"Part B! – Gross Non-fossil based Energy Consumption "]
[null,"Gross Non-fossil Energy Consumption for Quarter 1","F","MU",{"$f":"FormA_CPP_OA_Q1!E72","v":0}]
[null,"Gross Non-fossil Energy Consumption for Quarter 2","G","MU",{"$f":"FormA_CPP_OA_Q2!E72","v":0}]
[null,"Gross Non-fossil Energy Consumption for Quarter 3","H","MU",{"$f":"FormA_CPP_OA_Q3!E72","v":0}]
[null,"Gross Non-fossil Energy Consumption for Quarter 4","I","MU",{"$f":"FormA_CPP_OA_Q4!E72","v":0}]
[null,"Gross Non-fossil Energy Consumption for Target Financial Year","J = F+G+H+I","MU",{"$f":"SUM(E19:E22)","v":0}]
[null,"Part C! – Renewable Energy Certificates (RECs)"]
[null,"Renewable Energy Certificates (RECs) - During Assessment Year Window !!","T'=U'+V'","MU",{"$f":"E27+E29","v":0}]
[null,"Number of RECs Purchased",null,"No. of Certificates"]
[null,"REC Purchase","U'","MU",{"$f":"E26/1000","v":0}]
[null,"Number of RECs Self-Retained",null,"No. of Certificates"]
[null,"REC Self-retaintion","V'","MU",{"$f":"E28/1000","v":0}]
[null,"Renewable Energy Certificates (RECs) - During Target Year !","R=T1+T2+T3+T4","MU",{"$f":"SUM(E31:E34)","v":0}]
[null,"Compliance through REC for Quarter 1","T1","MU",{"$f":"FormA_CPP_OA_Q1!E73","v":0}]
[null,"Compliance through REC for Quarter 2","T2","MU",{"$f":"FormA_CPP_OA_Q2!E73","v":0}]
[null,"Compliance through REC for Quarter 3","T3","MU",{"$f":"FormA_CPP_OA_Q3!E73","v":0}]
[null,"Compliance through REC for Quarter 4","T4","MU",{"$f":"FormA_CPP_OA_Q4!E73","v":0}]
[null,"Total Compliance through RECs","N=T'+R","MU",{"$f":"E25+E30","v":0}]
[null,"Part D – Compliance to Renewable Consumption Obligations "]
[null,"Renewable Consumption Obligations Target specified by MoP","K","%",{"$f":"IF(OR(ISBLANK(C9),ISBLANK(C8)), 0,INDEX(Targets!H3:H20,MATCH(1,(Targets!B3:B20=C10)*(Targets!C3:C20=C8),0)))","v":0}]
[null,"MoP Renewable Consumption Obligations Target","L=E*K","MU",{"$f":"$E$17*$E$37","v":0}]
[null,"Annual Compliance","M=J+N","MU",{"$f":"E23+E35","v":0}]
[null,"Annual Compliance (%)","P = M/E","%",{"$f":"IF(E17=0,0,E39/E17)","v":0}]
[null,"Surplus / Deficit ##","Q=M-L","MU",{"$f":"E39-E38","v":0}]
[null,"Surplus / Deficit ## (%)","X=P-K","%",{"$f":"E40-E37","v":0}]
[]
[]
[null,"Legend","Data Entry Not Allowed","Data to be Entered by User","Calculated Data"]
[null,"Notes: "]
[null,"# Mention each of the type of obligations of the obligated Designated Consumer i.e. Open Access Consumer and/or Captive Power Consumer"]
[null,"! Quarterly values are automatically be brought over from respective Form A as duly completed by the user."]
[null,"!! Only enter RECs purchased or self-retained during the additional Compliance Window provided during the Assessment Year. For RECs purchased or self-retained during the Target Year, please make entries in the respective quarters (Q1 to Q4) of the Target Year. \n(Target Yr. = FY for which RCO compliance is being assessed, Assessment Yr. = FY immediately following the Target Yr.)"]
[null,"## RCO Compliance (Surplus / Deficit): Surplus is positive and Deficit is negative number "]
[]
[null,"Undertaking\nI/We undertake that the information supplied in this Renewable Consumption Obligations Compliance Declaration Form For Obligated Designated Consumers is accurate to the best of my knowledge and if any of the information supplied is found to be incorrect and such information results into loss to the Central Government or any of the authority under them or any other person affected, I/we undertake to indemnify such loss.\nI /We agree to extend necessary assistance in case of any enquiry to be made in the matter."]
[null,"For Designated Consumer",null,null,"For Empaneled AEA Agency"]
[]
[]
[]
[null,"Signature and Seal of Energy Manager / Plant Head",null,null,"Seal of Empaneled AEA Agency"]
[null,null,null,null,"AEA Number and Signature of Authorised AEA"]

{"sheet":"FormA_CPP_OA_Q1","index":2,"n_rows":113,"n_cols":5,"rows_kept":113,"cut":false,"hidden":false,"merged":[[7,2,7,4],[9,2,9,4],[10,2,10,4],[11,1,11,4],[40,1,40,4],[8,2,8,4],[1,1,1,4],[2,2,2,4],[3,2,3,4],[5,2,5,4],[6,2,6,4],[4,2,4,4],[102,1,102,4],[104,1,104,4],[95,1,95,4],[106,1,106,4],[77,1,77,4],[105,1,105,4],[94,1,94,4],[99,1,99,4],[91,1,91,4],[103,1,103,4],[88,1,88,4],[93,1,93,4],[87,1,87,4],[97,1,97,4],[98,1,98,4],[96,1,96,4],[100,1,100,4],[90,1,90,4],[92,1,92,4],[101,1,101,4],[89,1,89,4]]}
[]
[null,"Quarterly RCO Compliance Data reporting (Form A) - DCs with CPP & Open Access "]
[null,"Name of Obligated Designated Consumer",{"$f":"FormB_CPP_OA!C3","v":0}]
[null,"Address",{"$f":"FormB_CPP_OA!C4","v":0}]
[null,"Energy Intensive Sector of Designated Consumer",{"$f":"FormB_CPP_OA!C5","v":0}]
[null,"Registration No. of Obligated Designated Consumer",{"$f":"FormB_CPP_OA!C6","v":0}]
[null,"Type of obligation(s) of Obligated Designated Consumer#",{"$f":"FormB_CPP_OA!C7","v":0}]
[null,"Target Year FY (__-__)",{"$f":"FormB_CPP_OA!C8","v":0}]
[null,"Quarter","Quarter 1 (01 April to 30 June)"]
[null,"Location - State",{"$f":"FormB_CPP_OA!C9","v":0}]
[null,"State Category",{"$f":"FormB_CPP_OA!C10","v":""}]
[null,"Part A – Gross Total Energy Consumption (Fossil based + Non-fossil based)"]
[null,"Particulars ","Nomenclature","Unit","Total Energy"]
[null,"Own Generation, Net after deducting APC*** (Sub-Total)","AT=A+A!-A**+B+T","MU",{"$f":"E15+E18-E19+E20+E21","v":0}]
[null,"Total Fossil based energy generation *","A = Acogen+Anon-cogen","MU",{"$f":"'Annexure-1'!F29","v":0}]
[null,"Total Fossil based energy from Co-generation (5)","Acogen","MU",{"$f":"'Annexure-1'!F30","v":0}]
[null,"Total Fossil based energy generation other than Co-generation (7)","Anon-cogen","MU",{"$f":"'Annexure-1'!F31","v":0}]
[null,"Energy generation from Fossil based Auxiliary Firing in WHR System !!","A!","MU",{"$f":"'Annexure-1'!F34","v":0}]
[null,"Fossil based energy from WHR **","A**","MU",{"$f":"'Annexure-1'!F33","v":0}]
[null,"Nuclear energy","B","MU",{"$f":"'Annexure-1'!F28","v":0}]
[null,"Total RE ","T","MU",{"$f":"E52","v":0}]
[null,"Energy Purchase (Sub-Total)","CT=C+E+D+A'","MU",{"$f":"SUM(E23:E26)","v":0}]
[null,"Fossil based energy (PPA/Bilateral)","C","MU"]
[null,"Nuclear energy (PPA/Bilateral)","E","MU"]
[null,"Purchase from Power exchanges (TAM/DAM/RTM)","D","MU"]
[null,"Total RE ","A'","MU",{"$f":"E58","v":0}]
[null,"Energy Purchase from Discom (Not included in RCO calculations)","EDISCOM","MU"]
[null,"Energy Sales (Sub-Total)","FT=F+H+G+H*+I'","MU",{"$f":"SUM(E29:E33)","v":0}]
[null,"Fossil based energy sales to Power Exchange ","F","MU"]
[null,"Nuclear energy sales to Power Exchange ","H","MU"]
[null,"Other sales of Fossil based energy (PPA/Bilateral)","G","MU"]
[null,"Other sales of Nuclear energy (PPA/Bilateral)","H*","MU"]
[null,"Total RE ","I'","MU",{"$f":"E62","v":0}]
[null,"Net Fossil Energy drawn from Storage (Sub-Total) !!!","IT=(I-J)*(1-ITL)","MU",{"$f":"(E35-E36)*(1-E37)","v":0}]
[null,"Total Energy (Fossil + Nuclear) drawn from Storage (ESS)","I","MU"]
[null,"Total Energy (Fossil + Nuclear) stored into Storage (ESS)","J","MU"]
[null,"Losses in Storage (ESS)","ITL","%"]
[null,"Net RE drawn from Storage ( Sub-Total)","Q'","MU",{"$f":"E66","v":0}]
[null,"Gross Total Energy Consumption on which Renewable Consumption Obligations is applicable ","K=AT+CT-FT+IT+Q'+W'+X'","MU",{"$f":"E14+E22-E28+E34+E38+E70+E71","v":0}]
[null,"Gross Total Energy Consumption","Etotal = A**+EDISCOM+K","MU",{"$f":"E19+E27+E39","v":0}]
[null,"Part B – Gross Non-fossil based Energy Consumption "]
[null,"Particulars","Nomenclature","Unit","Total Quantity"]
[null,"Green Hydrogen produced","L","Tons"]
[null,"Green Hydrogen purchased","M","Tons"]
[null,"Sale of Green Hydrogen","N","Tons"]
[null,"Green Hydrogen consumed","O=L+M-N","Tons",{"$f":"E43+E44-E45","v":0}]
[null,"Green Ammonia produced","P","Tons"]
[null,"Green Ammonia purchased","Q","Tons"]
[null,"Sale of Green Ammonia","R","Tons"]
[null,"Green Ammonia consumed","S=P+Q-R","Tons",{"$f":"E47+E48-E49","v":0}]
[null,"Particulars","Nomenclature","Unit","Total Energy"]
[null,"RE Own Generation ⴕ ⴕ (Sub-Total)","T=U+W+Erex-bus","MU",{"$f":"E53+E54+E57","v":0}]
[null,"All Renewable Energy except DRE (1)","U","MU"]
[null,"Distributed Renewable Energy (DRE) (2)","W=X+Y","MU",{"$f":"E55+E56","v":0}]
[null,"DRE metered (4)","X","MU"]
[null,"DRE unmetered (3)","Y","MU"]
[null,"Total electrical energy generated by combustion of renewable fuels in CPP and WHR ⴕ","Erex-bus","MU",{"$f":"'Annexure-1'!F32","v":0}]
[null,"RE Purchase ⴕ ⴕ (Sub-Total)","A'=B'+E'+H'","MU",{"$f":"E59+E60+E61","v":0}]
[null,"All Renewable Energy purchase through Bilateral Contracts / PPAs (1)","B'","MU"]
[null,"RE Purchase by Requisition from Discom !","E'","MU"]
[null,"Green Power Market procurement (GTAM, GDAM)","H'","MU"]
[null,"RE Sales ⴕ ⴕ (Sub-Total)","I'=J'+L'+P'","MU",{"$f":"E63+E64+E65","v":0}]
[null,"All Renewable Energy except DRE (1)","J'","MU"]
[null,"Distributed Renewable Energy (DRE) (2)                                                                    DRE metered(6)","L'","MU"]
[null,"RE Sale to Green Power Market (GTAM, GDAM)","P'","MU"]
[null,"Net RE drawn from Storage (Sub-Total) !!!","Q'=(R'-S')*(1-QL)","MU",{"$f":"(E67-E68)*(1-E69)","v":0}]
[null,"Total RE drawn from Storage (ESS)","R'","MU"]
[null,"Total RE Stored into Storage (ESS)","S'","MU"]
[null,"Losses in Storage (ESS)","QL","%"]
[null,"Energy Equivalent of GH2 Consumed ##","W'","MU",{"$f":"'Annexure-2'!D9","v":0}]
[null,"Energy Equivalent of Green Ammonia Consumed ##","X'","MU"]
[null,"Gross Non-fossil based Energy Consumption ","Y'=T+A'-I'+Q'+W'+X'","MU",{"$f":"E52+E58-E62+E66+E70+E71","v":0}]
[null,"Renewable Energy Certificates (RECs) ⴕⴕⴕ","T'=U'+V'","MU",{"$f":"E75+E77","v":0}]
[null,"Number of RECs Purchased",null,"No. of Certificates"]
[null,"REC Purchase","U'","MU",{"$f":"E74/1000","v":0}]
[null,"Number of RECs Self-Retained",null,"No. of Certificates"]
[null,"REC Self-retaintion","V'","MU",{"$f":"E76/1000","v":0}]
[null,"Part C – RENEWABLE CONSUMPTION OBLIGATIONS  Compliance "]
[null,"Particular","Nomenclature","Unit","Values"]
[null,"RCO (%) specified by MoP","Z'","%",{"$f":"FormB_CPP_OA!E37","v":0}]
[null,"MoP Renewable Consumption Obligation Target","A''=K*Z'","MU",{"$f":"E39*E80","v":0}]
[null,"Quarterly Compliance","D''=Y'+T'","MU",{"$f":"E72+E73","v":0}]
[null,"Quarterly Compliance (%)","B''=D''/K","%",{"$f":"IF(E39=0,0,E82/E39)","v":0}]
[null,"Surplus / Deficit #","C''=D''-A''","MU",{"$f":"E82-E81","v":0}]
[null,"Surplus / Deficit # (%)","E''=B''-Z'","%",{"$f":"E83-E80","v":0}]
[]
[null,"Legend","Data Entry Not Allowed","Data to be Entered by User","Calculated Data"]
[null,"Notes: "]
[null,"*** All Energy Generation should be reported as Net Generation after deduction of auxilliary power consumption in the respective power plant. This includes Total Fossil based generation, generation from WHR, as well as Nuclear and RE generation. AEA / ACV Agency to review the auxilliary power consumption records and confirm prior to endorsing the Form A and Form B. Details of deduction of APC to be entered in Annexure - 1. Additional details to be appended as supporting documents and / or in AEA's report."]
[null,"* This is the total fossil based energy generation INCLUDING generation through Co-gen and WHR. In case of cofiring of non-fossil fuels, the non-fossil component of power as calculated in Annexure-1 will NOT be included. Only the fossil based component of power generated from cofiring of fuels should be included."]
[null,"(5) This is the total fossil based electricity generation through Co-generation (including WHR based power). This includes electricity generation through all extraction condensing turbines and backpressure turbines in the CPP."]
[null,"(7) This is the total fossil based electricity generation other than Co-generation (including WHR based power). This includes electricity generation through all condensing turbines in the CPP."]
[null,"** This is all Non-RE based energy generated from WHR, which is exempted from RCO obligation. This is hence reported separately, and substracted from total fossil based energy generation."]
[null,"!! This component of energy is only applicable in case of auxiliary firing of fossil based fuels in the waste heat recovery boiler (WHRB).The value is to be calculated and brought over from the Co-firing and WHR Tool, to the \"Annexure-1\" worksheet. The value net of APC is then calculated in \"Annexure-1\" worksheet.  "]
[null,"!!! All power stored into Storage (ESS) shall be metered or other wise established (e.g. based on purchase records) separately for fossil based including nuclear power, and separately for RE power. The power drawn from ESS for the quarter shall also be distributed in the same ratio of (Fossil + Nuclear) to RE, as the power stored into ESS for the quarter. All necessary details to establish net power drawn from ESS for (Fossil + Nuclear) and RE shall then be entered separately into the respective fields provided."]
[null,"! This is renewable energy purchased by 'Requsition from Discom' at a premium cost as determined by the respective SERC. The 'Requsition from Discom' route for RE purchase by DC is as defined in the Green Energy Open Access Rules notified by MoP as amended from time to time. \nWhile claiming renewable energy purchased by 'Requsition from Discom' route, the obligated DC must furnish a no-objection certificate provided by distribution licensee mentioning that the distribution licensee shall have no claim over the eligible non-fossil energy thus supplied, as far as RCOs of the distribution licensee is concerned."]
[null,"ⴕ This value is calculated from the inputs provided in the Worksheet named \"Annexure-1\" and is only applicable in case of electricity generation by combustion / co-firing of Renewable Fuels. Do NOT enter any values in \"Annexure-1\" for this parameter, if combustion / co-firing of Renewable Fuels is not applicable."]
[null,"ⴕ ⴕ Definition of RE Sources (Wind, Hydro, DRE and Others) shall be as per MoP Trajectory notification S.O. 4617(E) dtd. 20 October 2023 or as per latest amendments from time to time. Bifurcation among RE Sources (Wind, Hydro, DRE and Others) is not required for RCO compliance."]
[null,"(1) This includes Wind, Hydro, DRE and Other Renewable Energy components. i.e.All renewable electrical energy purchased through bilateral contracts / PPAs."]
[null,"(2) The distributed renewable energy (DRE) component must be sourced exclusively from renewable energy projects that are under 10 MW in capacity. This includes all types of solar installations, such as net metering, gross metering, virtual net metering, group net metering, behind-the-meter installations, and any other configurations approved by the Central Government.\n\nCompliance with distributed renewable energy requirements will generally be measured in terms of energy (kilowatt-hour units).\n\nIf the designated consumer cannot provide generation data for distributed renewable energy installations, the reported capacity will be converted into energy generation using a multiplier of 3.5 units per kilowatt per day (kWh/kW/day).\n\nPurchase or Sale of unmetered energy (DRE) is not the norm and is not encouraged, even under exceptional circumstances. Accordingly, the provision for recording unmetered DRE is only made under the head of 'Own RE Generation' and not under the heads of 'RE Purchase' and 'RE Sales'."]
[null,"(3) The number of days in the respective quarter or year that the DRE installation has been in operation shall be certified by the obligated DC and/or the AEA / ACV Agency in case of unmetered DRE."]
[null,"(4) Please report the DRE generation based on meter reading at the generator meter. In case a direct meter reading of the total generated power from DRE source is not available, then provision for such metering should be made within the next six months. Provisionally, till the metering arrangement is put in place, energy generation may be reported as unmetered DRE generation using the multiplier mentioned above (5 kWh/kW/day)."]
[null,"(6) DRE injected to Grid will be treated and reported as RE Sales to Grid in case of DRE connected in 'Net Metering' and 'Gross Metering' configurations and its variants. In case of gross metering, entire DRE generation shall be deemed to be injected to Grid"]
[null,"ⴕ ⴕ ⴕ Make an entry here only for the RECs purchased or self-retained duirng the first quarter (Q1 - 01 April to 30 June) of the Target Year"]
[null,"## Energy equivalent of GH2 and Green Ammonia Consumed should be evaluated as per Green Energy Open Access Rules with latest amendments as applicable. Details for GH2 to be entered in worksheet named Annexure 2, whereas energy consumption for Green Amonia based on Energy equivalent of one tonne of Green Ammonia or based on meter reading shall be entered in this worksheet (cell E64). Supporting calculations for the same to be appended."]
[null,"# RCO Compliance (Surplus / Deficit): Surplus is positive and Deficit is negative number"]
[null,"Undertaking\nI/We undertake that the information supplied in this Renewable Consumption Obligations Compliance Declaration Form For Obligated Designated Consumers is accurate to the best of my knowledge and if any of the information supplied is found to be incorrect and such information results into loss to the Central Government or any of the authority under them or any other person affected, I/we undertake to indemnify such loss.\nI /We agree to extend necessary assistance in case of any enquiry to be made in the matter."]
[null,"For Designated Consumer",null,null,"For Empaneled AEA Agency"]
[]
[]
[]
[null,"Signature and Seal of Energy Manager / Plant Head",null,null,"Seal of Empaneled AEA Agency"]
[null,null,null,null,"AEA Number and Signature of Authorised AEA"]

{"sheet":"FormA_CPP_OA_Q2","index":3,"n_rows":115,"n_cols":5,"rows_kept":115,"cut":false,"hidden":false,"merged":[[106,1,106,4],[108,1,108,4],[105,1,105,4],[103,1,103,4],[99,1,99,4],[98,1,98,4],[101,1,101,4],[104,1,104,4],[87,1,87,4],[89,1,89,4],[92,1,92,4],[97,1,97,4],[102,1,102,4],[100,1,100,4],[96,1,96,4],[88,1,88,4],[93,1,93,4],[94,1,94,4],[95,1,95,4],[90,1,90,4],[91,1,91,4],[77,1,77,4],[1,1,1,4],[2,2,2,4],[3,2,3,4],[5,2,5,4],[6,2,6,4],[7,2,7,4],[11,1,11,4],[40,1,40,4],[8,2,8,4],[9,2,9,4],[10,2,10,4],[4,2,4,4]]}
[]
[null,"Quarterly RCO Compliance Data reporting (Form A) - DCs with CPP & Open Access "]
[null,"Name of Obligated Designated Consumer",{"$f":"FormB_CPP_OA!C3","v":0}]
[null,"Address",{"$f":"FormB_CPP_OA!C4","v":0}]
[null,"Energy Intensive Sector of Designated Consumer",{"$f":"FormB_CPP_OA!C5","v":0}]
[null,"Registration No. of Obligated Designated Consumer",{"$f":"FormB_CPP_OA!C6","v":0}]
[null,"Type of obligation(s) of Obligated Designated Consumer#",{"$f":"FormB_CPP_OA!C7","v":0}]
[null,"Target Year FY (__-__)",{"$f":"FormB_CPP_OA!C8","v":0}]
[null,"Quarter","Quarter 2 (01 July to 30 September)"]
[null,"Location - State",{"$f":"FormB_CPP_OA!C9","v":0}]
[null,"State Category",{"$f":"FormB_CPP_OA!C10","v":""}]
[null,"Part A – Gross Total Energy Consumption (Fossil based + Non-fossil based)"]
[null,"Particulars ","Nomenclature","Unit","Total Energy"]
[null,"Own Generation, Net after deducting APC*** (Sub-Total)","AT=A+A!-A**+B+T","MU",{"$f":"E15+E18-E19+E20+E21","v":0}]
[null,"Total Fossil based energy generation *","A = Acogen+Anon-cogen","MU",{"$f":"'Annexure-1'!G29","v":0}]
[null,"Total Fossil based energy from Co-generation (5)","Acogen","MU",{"$f":"'Annexure-1'!G30","v":0}]
[null,"Total Fossil based energy generation other than Co-generation (7)","Anon-cogen","MU",{"$f":"'Annexure-1'!G31","v":0}]
[null,"Energy generation from Fossil based Auxiliary Firing in WHR System !!","A!","MU",{"$f":"'Annexure-1'!G34","v":0}]
[null,"Fossil based energy from WHR **","A**","MU",{"$f":"'Annexure-1'!G33","v":0}]
[null,"Nuclear energy","B","MU",{"$f":"'Annexure-1'!G28","v":0}]
[null,"Total RE ","T","MU",{"$f":"E52","v":0}]
[null,"Energy Purchase (Sub-Total)","CT=C+E+D+A'","MU",{"$f":"SUM(E23:E26)","v":0}]
[null,"Fossil based energy (PPA/Bilateral)","C","MU"]
[null,"Nuclear energy (PPA/Bilateral)","E","MU"]
[null,"Purchase from Power exchanges (TAM/DAM/RTM)","D","MU"]
[null,"Total RE ","A'","MU",{"$f":"E58","v":0}]
[null,"Energy Purchase from Discom (Not included in RCO calculations)","EDISCOM","MU"]
[null,"Energy Sales (Sub-Total)","FT=F+H+G+H*+I'","MU",{"$f":"SUM(E29:E33)","v":0}]
[null,"Fossil based energy sales to Power Exchange ","F","MU"]
[null,"Nuclear energy sales to Power Exchange ","H","MU"]
[null,"Other sales of Fossil based energy (PPA/Bilateral)","G","MU"]
[null,"Other sales of Nuclear energy (PPA/Bilateral)","H*","MU"]
[null,"Total RE ","I'","MU",{"$f":"E62","v":0}]
[null,"Net Fossil Energy drawn from Storage (Sub-Total) !!!","IT=(I-J)*(1-ITL)","MU",{"$f":"(E35-E36)*(1-E37)","v":0}]
[null,"Total Energy drawn from Storage (ESS)","I","MU"]
[null,"Total Energy (Fossil + Nuclear) stored into Storage (ESS)","J","MU"]
[null,"Losses in Storage (ESS)","ITL","%"]
[null,"Net RE drawn from Storage ( Sub-Total)","Q'","MU",{"$f":"E66","v":0}]
[null,"Gross Total Energy Consumption on which Renewable Consumption Obligations is applicable ","K=AT+CT-FT+IT+Q'+W'+X'","MU",{"$f":"E14+E22-E28+E34+E38+E70+E71","v":0}]
[null,"Gross Total Energy Consumption","Etotal = A**+EDISCOM+K","MU",{"$f":"E19+E27+E39","v":0}]
[null,"Part B – Gross Non-fossil based Energy Consumption "]
[null,"Particulars","Nomenclature","Unit","Total Quantity"]
[null,"Green Hydrogen produced","L","Tons"]
[null,"Green Hydrogen purchased","M","Tons"]
[null,"Sale of Green Hydrogen","N","Tons"]
[null,"Green Hydrogen consumed","O=L+M-N","Tons",{"$f":"E43+E44-E45","v":0}]
[null,"Green Ammonia produced","P","Tons"]
[null,"Green Ammonia purchased","Q","Tons"]
[null,"Sale of Green Ammonia","R","Tons"]
[null,"Green Ammonia consumed","S=P+Q-R","Tons",{"$f":"E47+E48-E49","v":0}]
[null,"Particulars","Nomenclature","Unit","Total Energy"]
[null,"RE Own Generation ⴕ ⴕ (Sub-Total)","T=U+W+Erex-bus","MU",{"$f":"E53+E54+E57","v":0}]
[null,"Wind, Hydro and Other Renewable Energy (1)","U","MU"]
[null,"Distributed Renewable Energy (DRE) (2)","W=X+Y","MU",{"$f":"E55+E56","v":0}]
[null,"DRE metered","X","MU"]
[null,"DRE unmetered (3)","Y","MU"]
[null,"Total electrical energy generated by combustion of renewable fuels in CPP and WHR ⴕ","Erex-bus","MU",{"$f":"'Annexure-1'!G32","v":0}]
[null,"RE Purchase ⴕ ⴕ (Sub-Total)","A'=B'+E'+H'","MU",{"$f":"E59+E60+E61","v":0}]
[null,"Wind, Hydro and Other Renewable Energy (1)","B'","MU"]
[null,"RE Purchase by Requisition from Discom !","E'","MU"]
[null,"Green Power Market procurement (GTAM, GDAM)","H'","MU"]
[null,"RE Sales ⴕ ⴕ (Sub-Total)","I'=J'+L'+P'","MU",{"$f":"E63+E64+E65","v":0}]
[null,"Wind, Hydro and Other Renewable Energy (1)","J'","MU"]
[null,"Distributed Renewable Energy (DRE) (2)                                                  DRE metered (6)","L'","MU"]
[null,"RE Sale to Green Power Market (GTAM, GDAM)","P'","MU"]
[null,"Net RE drawn from Storage (Sub-Total) !!!","Q'=(R'-S')*(1-QL)","MU",{"$f":"(E67-E68)*(1-E69)","v":0}]
[null,"Total Energy drawn from Storage (ESS)","R'","MU"]
[null,"Total RE Stored into Storage (ESS)","S'","MU"]
[null,"Losses in Storage (ESS)","QL","%"]
[null,"Energy Equivalent of GH2 Consumed ##","W'","MU",{"$f":"'Annexure-2'!E9","v":0}]
[null,"Energy Equivalent of Green Ammonia Consumed ##","X'","MU"]
[null,"Gross Non-fossil based Energy Consumption ","Y'=T+A'-I'+Q'+W'+X'","MU",{"$f":"E52+E58-E62+E66+E70+E71","v":0}]
[null,"Renewable Energy Certificates (RECs) ⴕⴕⴕ","T'=U'+V'","MU",{"$f":"E75+E77","v":0}]
[null,"Number of RECs Purchased",null,"No. of Certificates"]
[null,"REC Purchase","U'","MU",{"$f":"E74/1000","v":0}]
[null,"Number of RECs Self-Retained",null,"No. of Certificates"]
[null,"REC Self-retaintion","V'","MU",{"$f":"E76/1000","v":0}]
[null,"Part C – RENEWABLE CONSUMPTION OBLIGATIONS  Compliance "]
[null,"Particular","Nomenclature","Unit","Values"]
[null,"RCO (%) specified by MoP","Z'","%",{"$f":"FormB_CPP_OA!E37","v":0}]
[null,"MoP Renewable Consumption Obligation Target","A''=K*Z'","MU",{"$f":"E39*E80","v":0}]
[null,"Quarterly Compliance","D''=Y'+T'","MU",{"$f":"E72+E73","v":0}]
[null,"Quarterly Compliance (%)","B''=D''/K","%",{"$f":"IF(E39=0,0,E82/E39)","v":0}]
[null,"Surplus / Deficit #","C''=D''-A''","MU",{"$f":"E82-E81","v":0}]
[null,"Surplus / Deficit # (%)","E''=B''-Z'","%",{"$f":"E83-E80","v":0}]
[]
[null,"Legend","Data Entry Not Allowed","Data to be Entered by User","Calculated Data"]
[null,"Notes: "]
[null,"*** All Energy Generation should be reported as Net Generation after deduction of auxilliary power consumption in the respective power plant. This includes Total Fossil based generation, generation from WHR, as well as Nuclear and RE generation. AEA / ACV Agency to review the auxilliary power consumption records and confirm prior to endorsing the Form A and Form B. Details of deduction of APC to be appended as supporting documents."]
[null,"* This is the total fossil based energy generation INCLUDING generation from WHR. In case of cofiring of non-fossil fuels, the non-fossil component of power as calculated in Annexure-1 will NOT be included. Only the fossil based component of power generated from cofiring of fuels should be included."]
[null,"(5) This is the total fossil based electricity generation through Co-generation (including WHR based power). This includes electricity generation through all extraction condensing turbines and backpressure turbines in the CPP."]
[null,"(7) This is the total fossil based electricity generation other than Co-generation (including WHR based power). This includes electricity generation through all condensing turbines in the CPP."]
[null,"** This is all Non-RE based energy generated from WHR, which is exempted from RCO obligation. This is hence reported separately, and substracted from total fossil based energy generation."]
[null,"!! This value is calculated from the inputs provided in the relevant section of the Worksheet named \"Annexure-1\" and is only applicable in case of auxiliary firing of fossil based fuels in the waste heat recovery boiler (WHRB). Relevant values may be input in the fields provided for the same in \"Annexure-1\" if  auxiliary firing of fosil fuels is applicable."]
[null,"!!! All power stored into Storage (ESS) shall be metered or other wise established (e.g. based on purchase records) separately for fossil based including nuclear power, and separately for RE power. The power drawn from ESS for the quarter shall also be distributed in the same ratio of (Fossil + Nuclear) to RE, as the power stored into ESS for the quarter. All necessary details to establish net power drawn from ESS for (Fossil + Nuclear) and RE shall then be entered separately into the respective fields provided."]
[null,"! This is renewable energy purchased by 'Requsition from Discom' at a premium cost as determined by the respective SERC. The 'Requsition from Discom' route for RE purchase by DC is as defined in the Green Energy Open Access Rules notified by MoP as amended from time to time. \nWhile claiming renewable energy purchased by 'Requsition from Discom' route, the obligated DC must furnish a no-objection certificate provided by distribution licensee mentioning that the distribution licensee shall have no claim over the eligible non-fossil energy thus supplied, as far as RCOs of the distribution licensee is concerned."]
[null,"ⴕ This value is calculated from the inputs provided in the Worksheet named \"Annexure-1\" and is only applicable in case of electricity generation by combustion / co-firing of Renewable Fuels. Do NOT enter any values in \"Annexure-1\" if combustion / co-firing of Renewable Fuels is not applicable."]
[null,"ⴕ ⴕ Definition of RE Sources (Wind, Hydro, DRE and Others) shall be as per MoP Trajectory notification S.O. 4617(E) dtd. 20 October 2023 or as per latest amendments from time to time. Bifurcation among RE Sources (Wind, Hydro, DRE and Others) is not required for RCO compliance."]
[null,"(1) This includes Wind, Hydro, and Other Renewable Energy components. i.e. It effectively includes all renewable energy other than DRE which is specified in Note 4  as per MoP Trajectory notification S.O. 4617(E) dtd. 20 October 2023 or as per latest amendments from time to time."]
[null,"(2) The distributed renewable energy (DRE) component must be sourced exclusively from renewable energy projects that are under 10 MW in capacity. This includes all types of solar installations, such as net metering, gross metering, virtual net metering, group net metering, behind-the-meter installations, and any other configurations approved by the Central Government.\n\nCompliance with distributed renewable energy requirements will generally be measured in terms of energy (kilowatt-hour units).\n\nIf the designated consumer cannot provide generation data for distributed renewable energy installations, the reported capacity will be converted into energy generation using a multiplier of 3.5 units per kilowatt per day (kWh/kW/day).\n\nPurchase or Sale of unmetered energy (DRE) is not the norm and is not encouraged, even under execptional circumstances. Accordingly, the provision for recording unmetered DRE is only made under the head of 'Own RE Generation' and not under the heads of 'RE Purchase' and 'RE Sales'."]
[null,"(3) The number of days in the respective quarter or year that the DRE installation has been in operation shall be certified by the obligated DC and/or the AEA / ACV Agency in case of unmetered DRE."]
[null,"(4) Please report the DRE generation based on meter reading at the generator meter. In case a direct meter reading of the total generated power from DRE source is not available, then provision for such metering should be made within the next six months. Provisionally, till the metering arrangement is put in place, energy generation may be reported as unmetered DRE generation using the multiplier mentioned above (5 kWh/kW/day)."]
[null,"(5) In case separate purchase records are available for DRE purchased, say through bilateral PPA, then the same may be recorded here. Else RE purcahsed may be entered under 'Wind, Hydro and Other RE'"]
[null,"(6) DRE injected to Grid will be treated and reported as RE Sales to Grid in case of DRE connected in 'Net Metering' and 'Gross Metering' configurations and its variants. In case of gross metering, entire DRE generation shall be deemed to be injected to Grid"]
[null,"ⴕ ⴕ ⴕ Make an entry here only for the RECs purchased or self-retained duirng the first quarter (Q1 - 01 April to 30 June) of the Target Year"]
[null,"## Energy equivalent of GH2 and Green Ammonia Consumed should be evaluated as per Green Energy Open Access Rules with latest amendments as applicable. Details for GH2 to be entered in worksheet named Annexure 2, whereas energy consumption for Green Amonia based on Energy equivalent of one tonne of Green Ammonia or based on meter reading shall be entered in this worksheet (cell E64). Supporting calculations for the same to be appended."]
[null,"# RCO Compliance (Surplus / Deficit): Surplus is positive and Deficit is negative number"]
[]
[null,"Undertaking\nI/We undertake that the information supplied in this Renewable Consumption Obligations Compliance Declaration Form For Obligated Designated Consumers is accurate to the best of my knowledge and if any of the information supplied is found to be incorrect and such information results into loss to the Central Government or any of the authority under them or any other person affected, I/we undertake to indemnify such loss.\nI /We agree to extend necessary assistance in case of any enquiry to be made in the matter."]
[null,"For Designated Consumer",null,null,"For Empaneled AEA Agency"]
[]
[]
[]
[null,"Signature and Seal of Energy Manager / Plant Head",null,null,"Seal of Empaneled AEA Agency"]
[null,null,null,null,"AEA Number and Signature of Authorised AEA"]

{"sheet":"FormA_CPP_OA_Q3","index":4,"n_rows":115,"n_cols":5,"rows_kept":115,"cut":false,"hidden":false,"merged":[[106,1,106,4],[108,1,108,4],[105,1,105,4],[103,1,103,4],[99,1,99,4],[98,1,98,4],[101,1,101,4],[104,1,104,4],[87,1,87,4],[89,1,89,4],[92,1,92,4],[97,1,97,4],[102,1,102,4],[100,1,100,4],[96,1,96,4],[88,1,88,4],[93,1,93,4],[94,1,94,4],[95,1,95,4],[90,1,90,4],[91,1,91,4],[77,1,77,4],[1,1,1,4],[2,2,2,4],[3,2,3,4],[5,2,5,4],[6,2,6,4],[7,2,7,4],[11,1,11,4],[40,1,40,4],[8,2,8,4],[9,2,9,4],[10,2,10,4],[4,2,4,4]]}
[]
[null,"Quarterly RCO Compliance Data reporting (Form A) - DCs with CPP & Open Access "]
[null,"Name of Obligated Designated Consumer",{"$f":"FormB_CPP_OA!C3","v":0}]
[null,"Address",{"$f":"FormB_CPP_OA!C4","v":0}]
[null,"Energy Intensive Sector of Designated Consumer",{"$f":"FormB_CPP_OA!C5","v":0}]
[null,"Registration No. of Obligated Designated Consumer",{"$f":"FormB_CPP_OA!C6","v":0}]
[null,"Type of obligation(s) of Obligated Designated Consumer#",{"$f":"FormB_CPP_OA!C7","v":0}]
[null,"Target Year FY (__-__)",{"$f":"FormB_CPP_OA!C8","v":0}]
[null,"Quarter","Quarter 3 (01 October to 31 December)"]
[null,"Location - State",{"$f":"FormB_CPP_OA!C9","v":0}]
[null,"State Category",{"$f":"FormB_CPP_OA!C10","v":""}]
[null,"Part A – Gross Total Energy Consumption (Fossil based + Non-fossil based)"]
[null,"Particulars ","Nomenclature","Unit","Total Energy"]
[null,"Own Generation, Net after deducting APC*** (Sub-Total)","AT=A+A!-A**+B+T","MU",{"$f":"E15+E18-E19+E20+E21","v":0}]
[null,"Total Fossil based energy generation *","A = Acogen+Anon-cogen","MU",{"$f":"'Annexure-1'!H29","v":0}]
[null,"Total Fossil based energy from Co-generation (5)","Acogen","MU",{"$f":"'Annexure-1'!H30","v":0}]
[null,"Total Fossil based energy generation other than Co-generation (7)","Anon-cogen","MU",{"$f":"'Annexure-1'!H31","v":0}]
[null,"Energy generation from Fossil based Auxiliary Firing in WHR System !!","A!","MU",{"$f":"'Annexure-1'!H34","v":0}]
[null,"Fossil based energy from WHR **","A**","MU",{"$f":"'Annexure-1'!H33","v":0}]
[null,"Nuclear energy","B","MU",{"$f":"'Annexure-1'!H28","v":0}]
[null,"Total RE ","T","MU",{"$f":"E52","v":0}]
[null,"Energy Purchase (Sub-Total)","CT=C+E+D+A'","MU",{"$f":"SUM(E23:E26)","v":0}]
[null,"Fossil based energy (PPA/Bilateral)","C","MU"]
[null,"Nuclear energy (PPA/Bilateral)","E","MU"]
[null,"Purchase from Power exchanges (TAM/DAM/RTM)","D","MU"]
[null,"Total RE ","A'","MU",{"$f":"E58","v":0}]
[null,"Energy Purchase from Discom (Not included in RCO calculations)","EDISCOM","MU"]
[null,"Energy Sales (Sub-Total)","FT=F+H+G+H*+I'","MU",{"$f":"SUM(E29:E33)","v":0}]
[null,"Fossil based energy sales to Power Exchange ","F","MU"]
[null,"Nuclear energy sales to Power Exchange ","H","MU"]
[null,"Other sales of Fossil based energy (PPA/Bilateral)","G","MU"]
[null,"Other sales of Nuclear energy (PPA/Bilateral)","H*","MU"]
[null,"Total RE ","I'","MU",{"$f":"E62","v":0}]
[null,"Net Fossil Energy drawn from Storage (Sub-Total) !!!","IT=(I-J)*(1-ITL)","MU",{"$f":"(E35-E36)*(1-E37)","v":0}]
[null,"Total Energy drawn from Storage (ESS)","I","MU"]
[null,"Total Energy (Fossil + Nuclear) stored into Storage (ESS)","J","MU"]
[null,"Losses in Storage (ESS)","ITL","%"]
[null,"Net RE drawn from Storage ( Sub-Total)","Q'","MU",{"$f":"E66","v":0}]
[null,"Gross Total Energy Consumption on which Renewable Consumption Obligations is applicable ","K=AT+CT-FT+IT+Q'+W'+X'","MU",{"$f":"E14+E22-E28+E34+E38+E70+E71","v":0}]
[null,"Gross Total Energy Consumption","Etotal = A**+EDISCOM+K","MU",{"$f":"E19+E27+E39","v":0}]
[null,"Part B – Gross Non-fossil based Energy Consumption "]
[null,"Particulars","Nomenclature","Unit","Total Quantity"]
[null,"Green Hydrogen produced","L","Tons"]
[null,"Green Hydrogen purchased","M","Tons"]
[null,"Sale of Green Hydrogen","N","Tons"]
[null,"Green Hydrogen consumed","O=L+M-N","Tons",{"$f":"E43+E44-E45","v":0}]
[null,"Green Ammonia produced","P","Tons"]
[null,"Green Ammonia purchased","Q","Tons"]
[null,"Sale of Green Ammonia","R","Tons"]
[null,"Green Ammonia consumed","S=P+Q-R","Tons",{"$f":"E47+E48-E49","v":0}]
[null,"Particulars","Nomenclature","Unit","Total Energy"]
[null,"RE Own Generation ⴕ ⴕ (Sub-Total)","T=U+W+Erex-bus","MU",{"$f":"E53+E54+E57","v":0}]
[null,"Wind, Hydro and Other Renewable Energy (1)","U","MU"]
[null,"Distributed Renewable Energy (DRE) (2)","W=X+Y","MU",{"$f":"E55+E56","v":0}]
[null,"DRE metered","X","MU"]
[null,"DRE unmetered (3)","Y","MU"]
[null,"Total electrical energy generated by combustion of renewable fuels in CPP and WHR ⴕ","Erex-bus","MU",{"$f":"'Annexure-1'!H32","v":0}]
[null,"RE Purchase ⴕ ⴕ (Sub-Total)","A'=B'+E'+H'","MU",{"$f":"E59+E60+E61","v":0}]
[null,"Wind, Hydro and Other Renewable Energy (1)","B'","MU"]
[null,"RE Purchase by Requisition from Discom !","E'","MU"]
[null,"Green Power Market procurement (GTAM, GDAM)","H'","MU"]
[null,"RE Sales ⴕ ⴕ (Sub-Total)","I'=J'+L'+P'","MU",{"$f":"E63+E64+E65","v":0}]
[null,"Wind, Hydro and Other Renewable Energy (1)","J'","MU"]
[null,"Distributed Renewable Energy (DRE) (2)                                                                   DRE metered (6)","L'","MU"]
[null,"RE Sale to Green Power Market (GTAM, GDAM)","P'","MU"]
[null,"Net RE drawn from Storage (Sub-Total) !!!","Q'=(R'-S')*(1-QL)","MU",{"$f":"(E67-E68)*(1-E69)","v":0}]
[null,"Total Energy drawn from Storage (ESS)","R'","MU"]
[null,"Total RE Stored into Storage (ESS)","S'","MU"]
[null,"Losses in Storage (ESS)","QL","%"]
[null,"Energy Equivalent of GH2 Consumed ##","W'","MU",{"$f":"'Annexure-2'!F9","v":0}]
[null,"Energy Equivalent of Green Ammonia Consumed ##","X'","MU"]
[null,"Gross Non-fossil based Energy Consumption ","Y'=T+A'-I'+Q'+W'+X'","MU",{"$f":"E52+E58-E62+E66+E70+E71","v":0}]
[null,"Renewable Energy Certificates (RECs) ⴕⴕⴕ","T'=U'+V'","MU",{"$f":"E75+E77","v":0}]
[null,"Number of RECs Purchased",null,"No. of Certificates"]
[null,"REC Purchase","U'","MU",{"$f":"E74/1000","v":0}]
[null,"Number of RECs Self-Retained",null,"No. of Certificates"]
[null,"REC Self-retaintion","V'","MU",{"$f":"E76/1000","v":0}]
[null,"Part C – RENEWABLE CONSUMPTION OBLIGATIONS  Compliance "]
[null,"Particular","Nomenclature","Unit","Values"]
[null,"RCO (%) specified by MoP","Z'","%",{"$f":"FormB_CPP_OA!E37","v":0}]
[null,"MoP Renewable Consumption Obligation Target","A''=K*Z'","MU",{"$f":"E39*E80","v":0}]
[null,"Quarterly Compliance","D''=Y'+T'","MU",{"$f":"E72+E73","v":0}]
[null,"Quarterly Compliance (%)","B''=D''/K","%",{"$f":"IF(E39=0,0,E82/E39)","v":0}]
[null,"Surplus / Deficit #","C''=D''-A''","MU",{"$f":"E82-E81","v":0}]
[null,"Surplus / Deficit # (%)","E''=B''-Z'","%",{"$f":"E83-E80","v":0}]
[]
[null,"Legend","Data Entry Not Allowed","Data to be Entered by User","Calculated Data"]
[null,"Notes: "]
[null,"*** All Energy Generation should be reported as Net Generation after deduction of auxilliary power consumption in the respective power plant. This includes Total Fossil based generation, generation from WHR, as well as Nuclear and RE generation. AEA / ACV Agency to review the auxilliary power consumption records and confirm prior to endorsing the Form A and Form B. Details of deduction of APC to be appended as supporting documents."]
[null,"* This is the total fossil based energy generation INCLUDING generation from WHR. In case of cofiring of non-fossil fuels, the non-fossil component of power as calculated in Annexure-1 will NOT be included. Only the fossil based component of power generated from cofiring of fuels should be included."]
[null,"(5) This is the total fossil based electricity generation through Co-generation (including WHR based power). This includes electricity generation through all extraction condensing turbines and backpressure turbines in the CPP."]
[null,"(7) This is the total fossil based electricity generation other than Co-generation (including WHR based power). This includes electricity generation through all condensing turbines in the CPP."]
[null,"** This is all Non-RE based energy generated from WHR, which is exempted from RCO obligation. This is hence reported separately, and substracted from total fossil based energy generation."]
[null,"!! This value is calculated from the inputs provided in the relevant section of the Worksheet named \"Annexure-1\" and is only applicable in case of auxiliary firing of fossil based fuels in the waste heat recovery boiler (WHRB). Relevant values may be input in the fields provided for the same in \"Annexure-1\" if  auxiliary firing of fosil fuels is applicable."]
[null,"!!! All power stored into Storage (ESS) shall be metered or other wise established (e.g. based on purchase records) separately for fossil based including nuclear power, and separately for RE power. The power drawn from ESS for the quarter shall also be distributed in the same ratio of (Fossil + Nuclear) to RE, as the power stored into ESS for the quarter. All necessary details to establish net power drawn from ESS for (Fossil + Nuclear) and RE shall then be entered separately into the respective fields provided."]
[null,"! This is renewable energy purchased by 'Requsition from Discom' at a premium cost as determined by the respective SERC. The 'Requsition from Discom' route for RE purchase by DC is as defined in the Green Energy Open Access Rules notified by MoP as amended from time to time. \nWhile claiming renewable energy purchased by 'Requsition from Discom' route, the obligated DC must furnish a no-objection certificate provided by distribution licensee mentioning that the distribution licensee shall have no claim over the eligible non-fossil energy thus supplied, as far as RCOs of the distribution licensee is concerned."]
[null,"ⴕ This value is calculated from the inputs provided in the Worksheet named \"Annexure-1\" and is only applicable in case of electricity generation by combustion / co-firing of Renewable Fuels. Do NOT enter any values in \"Annexure-1\" if combustion / co-firing of Renewable Fuels is not applicable."]
[null,"ⴕ ⴕ Definition of RE Sources (Wind, Hydro, DRE and Others) shall be as per MoP Trajectory notification S.O. 4617(E) dtd. 20 October 2023 or as per latest amendments from time to time. Bifurcation among RE Sources (Wind, Hydro, DRE and Others) is not required for RCO compliance."]
[null,"(1) This includes Wind, Hydro, and Other Renewable Energy components. i.e. It effectively includes all renewable energy other than DRE which is specified in Note 4  as per MoP Trajectory notification S.O. 4617(E) dtd. 20 October 2023 or as per latest amendments from time to time."]
[null,"(2) The distributed renewable energy (DRE) component must be sourced exclusively from renewable energy projects that are under 10 MW in capacity. This includes all types of solar installations, such as net metering, gross metering, virtual net metering, group net metering, behind-the-meter installations, and any other configurations approved by the Central Government.\n\nCompliance with distributed renewable energy requirements will generally be measured in terms of energy (kilowatt-hour units).\n\nIf the designated consumer cannot provide generation data for distributed renewable energy installations, the reported capacity will be converted into energy generation using a multiplier of 3.5 units per kilowatt per day (kWh/kW/day).\n\nPurchase or Sale of unmetered energy (DRE) is not the norm and is not encouraged, even under execptional circumstances. Accordingly, the provision for recording unmetered DRE is only made under the head of 'Own RE Generation' and not under the heads of 'RE Purchase' and 'RE Sales'."]
[null,"(3) The number of days in the respective quarter or year that the DRE installation has been in operation shall be certified by the obligated DC and/or the AEA / ACV Agency in case of unmetered DRE."]
[null,"(4) Please report the DRE generation based on meter reading at the generator meter. In case a direct meter reading of the total generated power from DRE source is not available, then provision for such metering should be made within the next six months. Provisionally, till the metering arrangement is put in place, energy generation may be reported as unmetered DRE generation using the multiplier mentioned above (5 kWh/kW/day)."]
[null,"(5) In case separate purchase records are available for DRE purchased, say through bilateral PPA, then the same may be recorded here. Else RE purcahsed may be entered under 'Wind, Hydro and Other RE'"]
[null,"(6) DRE injected to Grid will be treated and reported as RE Sales to Grid in case of DRE connected in 'Net Metering' and 'Gross Metering' configurations and its variants. In case of gross metering, entire DRE generation shall be deemed to be injected to Grid"]
[null,"ⴕ ⴕ ⴕ Make an entry here only for the RECs purchased or self-retained duirng the first quarter (Q1 - 01 April to 30 June) of the Target Year"]
[null,"## Energy equivalent of GH2 and Green Ammonia Consumed should be evaluated as per Green Energy Open Access Rules with latest amendments as applicable. Details for GH2 to be entered in worksheet named Annexure 2, whereas energy consumption for Green Amonia based on Energy equivalent of one tonne of Green Ammonia or based on meter reading shall be entered in this worksheet (cell E64). Supporting calculations for the same to be appended."]
[null,"# RCO Compliance (Surplus / Deficit): Surplus is positive and Deficit is negative number"]
[]
[null,"Undertaking\nI/We undertake that the information supplied in this Renewable Consumption Obligations Compliance Declaration Form For Obligated Designated Consumers is accurate to the best of my knowledge and if any of the information supplied is found to be incorrect and such information results into loss to the Central Government or any of the authority under them or any other person affected, I/we undertake to indemnify such loss.\nI /We agree to extend necessary assistance in case of any enquiry to be made in the matter."]
[null,"For Designated Consumer",null,null,"For Empaneled AEA Agency"]
[]
[]
[]
[null,"Signature and Seal of Energy Manager / Plant Head",null,null,"Seal of Empaneled AEA Agency"]
[null,null,null,null,"AEA Number and Signature of Authorised AEA"]

{"sheet":"FormA_CPP_OA_Q4","index":5,"n_rows":115,"n_cols":5,"rows_kept":115,"cut":false,"hidden":false,"merged":[[106,1,106,4],[108,1,108,4],[105,1,105,4],[103,1,103,4],[99,1,99,4],[98,1,98,4],[101,1,101,4],[104,1,104,4],[87,1,87,4],[89,1,89,4],[92,1,92,4],[97,1,97,4],[102,1,102,4],[100,1,100,4],[88,1,88,4],[96,1,96,4],[93,1,93,4],[94,1,94,4],[95,1,95,4],[90,1,90,4],[91,1,91,4],[77,1,77,4],[1,1,1,4],[2,2,2,4],[3,2,3,4],[5,2,5,4],[6,2,6,4],[7,2,7,4],[11,1,11,4],[40,1,40,4],[8,2,8,4],[9,2,9,4],[10,2,10,4],[4,2,4,4]]}
[]
[null,"Quarterly RCO Compliance Data reporting (Form A) - DCs with CPP & Open Access "]
[null,"Name of Obligated Designated Consumer",{"$f":"FormB_CPP_OA!C3","v":0}]
[null,"Address",{"$f":"FormB_CPP_OA!C4","v":0}]
[null,"Energy Intensive Sector of Designated Consumer",{"$f":"FormB_CPP_OA!C5","v":0}]
[null,"Registration No. of Obligated Designated Consumer",{"$f":"FormB_CPP_OA!C6","v":0}]
[null,"Type of obligation(s) of Obligated Designated Consumer#",{"$f":"FormB_CPP_OA!C7","v":0}]
[null,"Target Year FY (__-__)",{"$f":"FormB_CPP_OA!C8","v":0}]
[null,"Quarter","Quarter 4 (01 January to 31 March)"]
[null,"Location - State",{"$f":"FormB_CPP_OA!C9","v":0}]
[null,"State Category",{"$f":"FormB_CPP_OA!C10","v":""}]
[null,"Part A – Gross Total Energy Consumption (Fossil based + Non-fossil based)"]
[null,"Particulars ","Nomenclature","Unit","Total Energy"]
[null,"Own Generation, Net after deducting APC*** (Sub-Total)","AT=A+A!-A**+B+T","MU",{"$f":"E15+E18-E19+E20+E21","v":0}]
[null,"Total Fossil based energy generation *","A = Acogen+Anon-cogen","MU",{"$f":"'Annexure-1'!I29","v":0}]
[null,"Total Fossil based energy from Co-generation (5)","Acogen","MU",{"$f":"'Annexure-1'!I30","v":0}]
[null,"Total Fossil based energy generation other than Co-generation (7)","Anon-cogen","MU",{"$f":"'Annexure-1'!I31","v":0}]
[null,"Energy generation from Fossil based Auxiliary Firing in WHR System !!","A!","MU",{"$f":"'Annexure-1'!I34","v":0}]
[null,"Fossil based energy from WHR **","A**","MU",{"$f":"'Annexure-1'!I33","v":0}]
[null,"Nuclear energy","B","MU",{"$f":"'Annexure-1'!I28","v":0}]
[null,"Total RE ","T","MU",{"$f":"E52","v":0}]
[null,"Energy Purchase (Sub-Total)","CT=C+E+D+A'","MU",{"$f":"SUM(E23:E26)","v":0}]
[null,"Fossil based energy (PPA/Bilateral)","C","MU"]
[null,"Nuclear energy (PPA/Bilateral)","E","MU"]
[null,"Purchase from Power exchanges (TAM/DAM/RTM)","D","MU"]
[null,"Total RE ","A'","MU",{"$f":"E58","v":0}]
[null,"Energy Purchase from Discom (Not included in RCO calculations)","EDISCOM","MU"]
[null,"Energy Sales (Sub-Total)","FT=F+H+G+H*+I'","MU",{"$f":"SUM(E29:E33)","v":0}]
[null,"Fossil based energy sales to Power Exchange ","F","MU"]
[null,"Nuclear energy sales to Power Exchange ","H","MU"]
[null,"Other sales of Fossil based energy (PPA/Bilateral)","G","MU"]
[null,"Other sales of Nuclear energy (PPA/Bilateral)","H*","MU"]
[null,"Total RE ","I'","MU",{"$f":"E62","v":0}]
[null,"Net Fossil Energy drawn from Storage (Sub-Total) !!!","IT=(I-J)*(1-ITL)","MU",{"$f":"(E35-E36)*(1-E37)","v":0}]
[null,"Total Energy drawn from Storage (ESS)","I","MU"]
[null,"Total Energy (Fossil + Nuclear) stored into Storage (ESS)","J","MU"]
[null,"Losses in Storage (ESS)","ITL","%"]
[null,"Net RE drawn from Storage ( Sub-Total)","Q'","MU",{"$f":"E66","v":0}]
[null,"Gross Total Energy Consumption on which Renewable Consumption Obligations is applicable ","K=AT+CT-FT+IT+Q'+W'+X'","MU",{"$f":"E14+E22-E28+E34+E38+E70+E71","v":0}]
[null,"Gross Total Energy Consumption","Etotal = A**+EDISCOM+K","MU",{"$f":"E19+E27+E39","v":0}]
[null,"Part B – Gross Non-fossil based Energy Consumption "]
[null,"Particulars","Nomenclature","Unit","Total Quantity"]
[null,"Green Hydrogen produced","L","Tons"]
[null,"Green Hydrogen purchased","M","Tons"]
[null,"Sale of Green Hydrogen","N","Tons"]
[null,"Green Hydrogen consumed","O=L+M-N","Tons",{"$f":"E43+E44-E45","v":0}]
[null,"Green Ammonia produced","P","Tons"]
[null,"Green Ammonia purchased","Q","Tons"]
[null,"Sale of Green Ammonia","R","Tons"]
[null,"Green Ammonia consumed","S=P+Q-R","Tons",{"$f":"E47+E48-E49","v":0}]
[null,"Particulars","Nomenclature","Unit","Total Energy"]
[null,"RE Own Generation ⴕ ⴕ (Sub-Total)","T=U+W+Erex-bus","MU",{"$f":"E53+E54+E57","v":0}]
[null,"Wind, Hydro and Other Renewable Energy (1)","U","MU"]
[null,"Distributed Renewable Energy (DRE) (2)","W=X+Y","MU",{"$f":"E55+E56","v":0}]
[null,"DRE metered","X","MU"]
[null,"DRE unmetered (3)","Y","MU"]
[null,"Total electrical energy generated by combustion of renewable fuels in CPP and WHR ⴕ","Erex-bus","MU",{"$f":"'Annexure-1'!I32","v":0}]
[null,"RE Purchase ⴕ ⴕ (Sub-Total)","A'=B'+E'+H'","MU",{"$f":"E59+E60+E61","v":0}]
[null,"Wind, Hydro and Other Renewable Energy (1)","B'","MU"]
[null,"RE Purchase by Requisition from Discom !","E'","MU"]
[null,"Green Power Market procurement (GTAM, GDAM)","H'","MU"]
[null,"RE Sales ⴕ ⴕ (Sub-Total)","I'=J'+L'+P'","MU",{"$f":"E63+E64+E65","v":0}]
[null,"Wind, Hydro and Other Renewable Energy (1)","J'","MU"]
[null,"Distributed Renewable Energy (DRE) (2)                                                                   DRE metered (6)","L'","MU"]
[null,"RE Sale to Green Power Market (GTAM, GDAM)","P'","MU"]
[null,"Net RE drawn from Storage (Sub-Total) !!!","Q'=(R'-S')*(1-QL)","MU",{"$f":"(E67-E68)*(1-E69)","v":0}]
[null,"Total Energy drawn from Storage (ESS)","R'","MU"]
[null,"Total RE Stored into Storage (ESS)","S'","MU"]
[null,"Losses in Storage (ESS)","QL","%"]
[null,"Energy Equivalent of GH2 Consumed ##","W'","MU",{"$f":"'Annexure-2'!G9","v":0}]
[null,"Energy Equivalent of Green Ammonia Consumed ##","X'","MU"]
[null,"Gross Non-fossil based Energy Consumption ","Y'=T+A'-I'+Q'+W'+X'","MU",{"$f":"E52+E58-E62+E66+E70+E71","v":0}]
[null,"Renewable Energy Certificates (RECs) ⴕⴕⴕ","T'=U'+V'","MU",{"$f":"E75+E77","v":0}]
[null,"Number of RECs Purchased",null,"No. of Certificates"]
[null,"REC Purchase","U'","MU",{"$f":"E74/1000","v":0}]
[null,"Number of RECs Self-Retained",null,"No. of Certificates"]
[null,"REC Self-retaintion","V'","MU",{"$f":"E76/1000","v":0}]
[null,"Part C – RENEWABLE CONSUMPTION OBLIGATIONS  Compliance "]
[null,"Particular","Nomenclature","Unit","Values"]
[null,"RCO (%) specified by MoP","Z'","%",{"$f":"FormB_CPP_OA!E37","v":0}]
[null,"MoP Renewable Consumption Obligation Target","A''=K*Z'","MU",{"$f":"E39*E80","v":0}]
[null,"Quarterly Compliance","D''=Y'+T'","MU",{"$f":"E72+E73","v":0}]
[null,"Quarterly Compliance (%)","B''=D''/K","%",{"$f":"IF(E39=0,0,E82/E39)","v":0}]
[null,"Surplus / Deficit #","C''=D''-A''","MU",{"$f":"E82-E81","v":0}]
[null,"Surplus / Deficit # (%)","E''=B''-Z'","%",{"$f":"E83-E80","v":0}]
[]
[null,"Legend","Data Entry Not Allowed","Data to be Entered by User","Calculated Data"]
[null,"Notes: "]
[null,"*** All Energy Generation should be reported as Net Generation after deduction of auxilliary power consumption in the respective power plant. This includes Total Fossil based generation, generation from WHR, as well as Nuclear and RE generation. AEA / ACV Agency to review the auxilliary power consumption records and confirm prior to endorsing the Form A and Form B. Details of deduction of APC to be appended as supporting documents."]
[null,"* This is the total fossil based energy generation INCLUDING generation from WHR. In case of cofiring of non-fossil fuels, the non-fossil component of power as calculated in Annexure-1 will NOT be included. Only the fossil based component of power generated from cofiring of fuels should be included."]
[null,"(5) This is the total fossil based electricity generation through Co-generation (including WHR based power). This includes electricity generation through all extraction condensing turbines and backpressure turbines in the CPP."]
[null,"(7) This is the total fossil based electricity generation other than Co-generation (including WHR based power). This includes electricity generation through all condensing turbines in the CPP."]
[null,"** This is all Non-RE based energy generated from WHR, which is exempted from RCO obligation. This is hence reported separately, and substracted from total fossil based energy generation."]
[null,"!! This value is calculated from the inputs provided in the relevant section of the Worksheet named \"Annexure-1\" and is only applicable in case of auxiliary firing of fossil based fuels in the waste heat recovery boiler (WHRB). Relevant values may be input in the fields provided for the same in \"Annexure-1\" if  auxiliary firing of fosil fuels is applicable."]
[null,"!!! All power stored into Storage (ESS) shall be metered or other wise established (e.g. based on purchase records) separately for fossil based including nuclear power, and separately for RE power. The power drawn from ESS for the quarter shall also be distributed in the same ratio of (Fossil + Nuclear) to RE, as the power stored into ESS for the quarter. All necessary details to establish net power drawn from ESS for (Fossil + Nuclear) and RE shall then be entered separately into the respective fields provided."]
[null,"! This is renewable energy purchased by 'Requsition from Discom' at a premium cost as determined by the respective SERC. The 'Requsition from Discom' route for RE purchase by DC is as defined in the Green Energy Open Access Rules notified by MoP as amended from time to time. \nWhile claiming renewable energy purchased by 'Requsition from Discom' route, the obligated DC must furnish a no-objection certificate provided by distribution licensee mentioning that the distribution licensee shall have no claim over the eligible non-fossil energy thus supplied, as far as RCOs of the distribution licensee is concerned."]
[null,"ⴕ This value is calculated from the inputs provided in the Worksheet named \"Annexure-1\" and is only applicable in case of electricity generation by combustion / co-firing of Renewable Fuels. Do NOT enter any values in \"Annexure-1\" if combustion / co-firing of Renewable Fuels is not applicable."]
[null,"ⴕ ⴕ Definition of RE Sources (Wind, Hydro, DRE and Others) shall be as per MoP Trajectory notification S.O. 4617(E) dtd. 20 October 2023 or as per latest amendments from time to time. Bifurcation among RE Sources (Wind, Hydro, DRE and Others) is not required for RCO compliance."]
[null,"(1) This includes Wind, Hydro, and Other Renewable Energy components. i.e. It effectively includes all renewable energy other than DRE which is specified in Note 4  as per MoP Trajectory notification S.O. 4617(E) dtd. 20 October 2023 or as per latest amendments from time to time."]
[null,"(2) The distributed renewable energy (DRE) component must be sourced exclusively from renewable energy projects that are under 10 MW in capacity. This includes all types of solar installations, such as net metering, gross metering, virtual net metering, group net metering, behind-the-meter installations, and any other configurations approved by the Central Government.\n\nCompliance with distributed renewable energy requirements will generally be measured in terms of energy (kilowatt-hour units).\n\nIf the designated consumer cannot provide generation data for distributed renewable energy installations, the reported capacity will be converted into energy generation using a multiplier of 3.5 units per kilowatt per day (kWh/kW/day).\n\nPurchase or Sale of unmetered energy (DRE) is not the norm and is not encouraged, even under execptional circumstances. Accordingly, the provision for recording unmetered DRE is only made under the head of 'Own RE Generation' and not under the heads of 'RE Purchase' and 'RE Sales'."]
[null,"(3) The number of days in the respective quarter or year that the DRE installation has been in operation shall be certified by the obligated DC and/or the AEA / ACV Agency in case of unmetered DRE."]
[null,"(4) Please report the DRE generation based on meter reading at the generator meter. In case a direct meter reading of the total generated power from DRE source is not available, then provision for such metering should be made within the next six months. Provisionally, till the metering arrangement is put in place, energy generation may be reported as unmetered DRE generation using the multiplier mentioned above (5 kWh/kW/day)."]
[null,"(5) In case separate purchase records are available for DRE purchased, say through bilateral PPA, then the same may be recorded here. Else RE purcahsed may be entered under 'Wind, Hydro and Other RE'"]
[null,"(6) DRE injected to Grid will be treated and reported as RE Sales to Grid in case of DRE connected in 'Net Metering' and 'Gross Metering' configurations and its variants. In case of gross metering, entire DRE generation shall be deemed to be injected to Grid"]
[null,"ⴕ ⴕ ⴕ Make an entry here only for the RECs purchased or self-retained duirng the first quarter (Q1 - 01 April to 30 June) of the Target Year"]
[null,"## Energy equivalent of GH2 and Green Ammonia Consumed should be evaluated as per Green Energy Open Access Rules with latest amendments as applicable. Details for GH2 to be entered in worksheet named Annexure 2, whereas energy consumption for Green Amonia based on Energy equivalent of one tonne of Green Ammonia or based on meter reading shall be entered in this worksheet (cell E64). Supporting calculations for the same to be appended."]
[null,"# RCO Compliance (Surplus / Deficit): Surplus is positive and Deficit is negative number"]
[]
[null,"Undertaking\nI/We undertake that the information supplied in this Renewable Consumption Obligations Compliance Declaration Form For Obligated Designated Consumers is accurate to the best of my knowledge and if any of the information supplied is found to be incorrect and such information results into loss to the Central Government or any of the authority under them or any other person affected, I/we undertake to indemnify such loss.\nI /We agree to extend necessary assistance in case of any enquiry to be made in the matter."]
[null,"For Designated Consumer",null,null,"For Empaneled AEA Agency"]
[]
[]
[]
[null,"Signature and Seal of Energy Manager / Plant Head",null,null,"Seal of Empaneled AEA Agency"]
[null,null,null,null,"AEA Number and Signature of Authorised AEA"]

{"sheet":"Annexure-1","index":6,"n_rows":57,"n_cols":10,"rows_kept":57,"cut":false,"hidden":false,"merged":[[50,2,50,9],[42,2,42,9],[46,2,46,9],[36,2,36,9],[37,2,37,9],[39,2,39,9],[38,2,38,9],[40,2,40,9],[45,2,45,9],[41,2,41,9],[43,2,43,9],[44,2,44,9],[47,2,47,9],[48,2,48,9],[35,3,35,4],[1,2,1,9],[35,5,35,7],[35,8,35,9],[2,2,2,9],[19,2,19,9],[4,2,4,9]]}
[]
[null,null,"Annexure – 1: Electricity Generated from CPP"]
[null,null,"(For combustion of non-fossil fuels, and for auxiliary firing of fuel in WHR system, Values to be brought over from Co-firing and WHR Tool, 'CPPSummary' sheet for respective quarters)"]
[]
[null,null,"(Gross Values Inclusive of Auxiliary Power Consumption)"]
[null,null,"Particulars ","Nomenclature","Unit","Quarter 1","Quarter 2","Quarter 3","Quarter 4","Annual"]
[null,null,"Total Electricity Generation from CPP during the quarter","ECPP = Ecogen + Enon-cogen","MU",{"$f":"F8+F9","v":0},{"$f":"G8+G9","v":0},{"$f":"H8+H9","v":0},{"$f":"I8+I9","v":0},{"$f":"SUM(F7:I7)","v":0}]
[null,null,"Total Electricity Generation from CPP through Co-gen during the quarter $","Ecogen","MU",null,null,null,null,0]
[null,null,"Total Electricity Generation from CPP other than Co-gen during the quarter %%","Enon-cogen","MU",null,null,null,null,0]
[null,null,"Total electrical energy generated by Microturbines (connected across PRDS/PRV) during the quarter","Emicro","MU",null,null,null,null,0]
[null,null,"Total Nuclear Electricity Generation during the quarter","Enuclear","MU",null,null,null,null,0]
[null,null,"Total electrical energy generated by Fossil Fuels during the quarter *","EfCPP = ECPP + Emicro - ErCPP","MU",{"$f":"F7+F10-F15","v":0},{"$f":"G7+G10-G15","v":0},0,0,0]
[null,null,"Total electrical energy generated by Fossil Fuel Co-gen during the quarter","Efcogen = Eco-gen + Emicro \n- ErCPP *(Ecogen/ECPP)","MU",{"$f":"IF(F7=0,0,F8+F10-F15*(F8/F7))","v":0},{"$f":"IF(G7=0,0,G8+G10-G15*(G8/G7))","v":0},{"$f":"IF(H7=0,0,H8+H10-H15*(H8/H7))","v":0},{"$f":"IF(I7=0,0,I8+I10-I15*(I8/I7))","v":0},0]
[null,null,"Total electrical energy generated other than Co-gen by Fossil Fuel during the quarter","Efnon-cogen = Enon-cogen \n- ErCPP *(Enon-cogen/ECPP)","MU",{"$f":"IF(F7=0,0,F9-F15*(F9/F7))","v":0},{"$f":"IF(G7=0,0,G9-G15*(G9/G7))","v":0},{"$f":"IF(H7=0,0,H9-H15*(H9/H7))","v":0},{"$f":"IF(I7=0,0,I9-I15*(I9/I7))","v":0},0]
[null,null,"Total electrical energy generated by bio-mass (or other renewable sources) during the quarter #","ErCPP","MU",null,null,null,null,0]
[null,null,"Total electrical energy generated at CPP through WHR during the quarter **","E(WHR)CPP","MU",null,null,null,null,0]
[null,null,"Total electrical energy generated by auxiliary firing of non-fossil fuel in WHR systems during the quarter #","Er(WHR)aux ","MU",null,null,null,null,0]
[null,null,"Total electrical energy generated by auxiliary firing of fossil fuel in WHR systems during the quarter !!","Ef(WHR)aux ","MU",null,null,null,null,{"$f":"SUM(F18:I18)","v":0}]
[]
[null,null,"(Values Net of Auxiliary Power Consumption)"]
[null,null,"Particulars ","Nomenclature","Unit","Quarter 1","Quarter 2","Quarter 3","Quarter 4","Annual"]
[null,null,"Auxiliary Power Consumption as a percentage of CPP Generation","APCCPP","%",null,null,null,null,{"$f":"IF(SUM(F22:I22)=0,0,AVERAGE(F22:I22))","v":0}]
[null,null,"APC of Microturbines as a percentage of Microturbines Generation","APCMicro","%",null,null,null,null,{"$f":"IF(SUM(F23:I23)=0,0,AVERAGE(F23:I23))","v":0}]
[null,null,"APC of WHRS as a percentage of WHRS Generation","APCWHRS","%",null,null,null,null,{"$f":"IF(SUM(F24:I24)=0,0,AVERAGE(F24:I24))","v":0}]
[null,null,"APC as a percentage of Nuclear generation","APCnuclear","%",null,null,null,null,{"$f":"IF(SUM(F25:I25)=0,0,AVERAGE(F25:I25))","v":0}]
[null,null,"Total Electricity Generation from CPP during the quarter","E(ex-bus)CPP = ECPP * (1-APCCPP/100)","MU",{"$f":"F7*(1-F22/100)","v":0},{"$f":"G7*(1-G22/100)","v":0},{"$f":"H7*(1-H22/100)","v":0},{"$f":"I7*(1-I22/100)","v":0},{"$f":"SUM(F26:I26)","v":0}]
[null,null,"Total electrical energy generated by Microturbines during the quarter","E(ex-bus)micro = Emicro * (1-APCmicro/100)","MU",{"$f":"F10*(1-F23/100)","v":0},0,0,0,0]
[null,null,"Total Nuclear Electricity Generation during the quarter","B = Enuclear * (1 - APCnuclear/100)","MU",{"$f":"F11*(1-F25/100)","v":0},{"$f":"G11*(1-G25/100)","v":0},{"$f":"H11*(1-H25/100)","v":0},{"$f":"I11*(1-I25/100)","v":0},0]
[null,null,"Total electrical energy generated by Fossil Fuels during the quarter","A = EfCPP  * (1-APCCPP/100)","MU",{"$f":"F12*(1-F22/100)","v":0},{"$f":"G12*(1-G22/100)","v":0},{"$f":"H12*(1-H22/100)","v":0},{"$f":"I12*(1-I22/100)","v":0},0]
[null,null,"Total electrical energy generated by Fossil Fuel Co-gen during the quarter","Acogen = EfCogen  * (1-APCCPP/100)","MU",{"$f":"F13*(1-F22/100)","v":0},{"$f":"G13*(1-G22/100)","v":0},{"$f":"H13*(1-H22/100)","v":0},{"$f":"I13*(1-I22/100)","v":0},0]
[null,null,"Total electrical energy generated other than Co-gen by Fossil Fuel during the quarter","Anon-cogen = Efnon-cogen  * (1-APCCPP/100)","MU",{"$f":"F14*(1-F22/100)","v":0},{"$f":"G14*(1-G22/100)","v":0},{"$f":"H14*(1-H22/100)","v":0},{"$f":"I14*(1-I22/100)","v":0},0]
[null,null,"Total electrical energy generated by bio-mass (or other renewable sources) during the quarter","Erex-bus =  (ErCPP - Er(WHR)AUX) * (1-APCCPP/100) + Er(WHR)AUX * (1-APCWHRS/100)","MU",{"$f":"(F15-F17)*(1-F22/100)+F17*(1-F24/100)","v":0},{"$f":"(G15-G17)*(1-G22/100)+G17*(1-G24/100)","v":0},{"$f":"(H15-H17)*(1-H22/100)+H17*(1-H24/100)","v":0},{"$f":"(I15-I17)*(1-I22/100)+I17*(1-I24/100)","v":0},0]
[null,null,"Total electrical energy generated at CPP through WHR during the quarter ","A** = E(WHR)CPP * (1-APCWHRS/100)","MU",{"$f":"F16*(1-F24/100)","v":0},{"$f":"G16*(1-G24/100)","v":0},{"$f":"H16*(1-H24/100)","v":0},{"$f":"I16*(1-I24/100)","v":0},0]
[null,null,"Total electrical energy generated by auxiliary firing of fossil fuel during the quarter","A! = Ef(WHR)aux * (1-APCWHRS/100)","MU",{"$f":"F18*(1-F24/100)","v":0},{"$f":"G18*(1-G24/100)","v":0},{"$f":"H18*(1-H24/100)","v":0},{"$f":"I18*(1-I24/100)","v":0},{"$f":"SUM(F34:I34)","v":0}]
[]
[null,null,"Legend","Data Entry Not Allowed",null,"Data to be Entered by User",null,null,"Calculated Data"]
[null,null,"Notes:"]
[null,null,"1) This Annexure - 1 should be used along with the values brought over from the Co-firing and WHR tool in case of combustion of non-fossil fuels in CPP, and for WHR system including auxiliary firing of fuel. In such cases, the duly populated formats from Co-firing and WHR tool should be appended along with this annexure."]
[null,null,"2) Electricity generated at generator terminal is to be entered, and values are then calculated based on auxiliary power consumption. APC as % share of generation is to be entered to calculate the generation values net of APC."]
[null,null,"3) In case the WHR system and CPP are separate and separate APCs apply to these, provision has been made to provide %APC values separately for CPP, Microturbines and WHR system. "]
[null,null,"4) In case a common APC is calculated for the entire CPP including WHR system and Microturbines, then the %APC value for the CPP should be entered in place of all APC values. i.e. APCCPP value should be entered in place of APCMicro and APCWHR"]
[null,null,"5) APC should include only consumption for auxiliaries attributable solely to the CPP. Axuiliaries shared with the plant processes should be strictly excluded from APC."]
[null,null,"6) The net values calculated after accounting for APC (specifically values B, A, Acogen, Anon-cogen, Erex-bus, A**, and A!) are brought over to respective quarterly Form A."]
[null,null,"$ This is the total fossil based electricity generation through Co-generation (including WHR based power). This includes electricity generation through all extraction condensing turbines and backpressure turbines in the CPP."]
[null,null,"%% This is the total fossil based electricity generation other than Co-generation (including WHR based power). This includes electricity generation through all condensing turbines in the CPP."]
[null,null,"* This is the total fossil based energy generation INCLUDING generation through Co-gen and WHR. In case of cofiring of non-fossil fuels, the non-fossil component of power will NOT be included. Accordingly, this non-fossil component is deducted from the total electricity generation from CPP."]
[null,null,"# The total electrical energy generated by auxiliary firing of non-fossil fuel during the quarter (ErCPP) as calculated from the Co-firing and WHR tool includes the energy generated by auxiliary firing of non-fossil fuel in WHR systems during the quarter i.e. Er(WHR)AUX. Hence, The value of Er(WHR)AUX, net of APC is not calculated or brought over to respective quarterly Form A. "]
[null,null,"** This is the total Non-RE based energy generated from WHR, which is exempted from RCO obligation. This is hence reported separately, and substracted from total fossil based energy generation, in the respective quarterly Form A."]
[null,null,"!! This value is to be calculated and brought over from the Co-firing and WHR tool and is only applicable in case of auxiliary firing of fossil based fuels in the waste heat recovery boiler (WHRB). This energy is not exempt fromRCO obligations, and is hence added back to total generation in the respective quarterly form A."]
[]
[null,null,"Undertaking\nI/We undertake that the information supplied in this Renewable Consumption Obligations Compliance Declaration Form For Obligated Designated Consumers is accurate to the best of my knowledge and if any of the information supplied is found to be incorrect and such information results into loss to the Central Government or any of the authority under them or any other person affected, I/we undertake to indemnify such loss.\nI /We agree to extend necessary assistance in case of any enquiry to be made in the matter."]
[null,null,"For Obligated DC",null,null,null,null,null,null,"For Empaneled AEA Agency"]
[]
[]
[]
[null,null,"Signature and Seal of Energy Manager / Plant Head",null,null,null,null,null,null,"Seal of Empaneled AEA Agency"]
[null,null,null,null,null,null,null,null,null,"AEA Number and Signature of Authorised AEA"]

{"sheet":"Annexure-2","index":7,"n_rows":34,"n_cols":19,"rows_kept":34,"cut":false,"hidden":false,"merged":[[1,1,1,8],[20,1,20,8],[22,3,22,7],[3,1,5,2],[7,1,8,1],[7,2,8,2],[7,8,8,8],[19,1,19,8],[10,1,10,8],[22,13,22,17],[19,10,19,18],[5,3,5,7],[4,3,4,7],[3,3,3,7]]}
[]
[null,"Annexure – 2: Estimation of electricity required for production of Green Hydrogen"]
[]
[null,"Legend",null,"Data to be Entered by User"]
[null,null,null,"Data Entry Not Allowed"]
[null,null,null,"Calculated Data"]
[]
[null,"GrandTotal - Energy Equivalent of GH2 consumed (Case # 1 + Case # 2)","MU","Quarter 1","Quarter 2","Quarter 3","Quarter 4","Annual","Note: The Quarter wise Energy Equivalent of GH2 consumed is automatically reflected in the Form A of respective quarter."]
[null,null,null,{"$f":"D24+N24","v":0},{"$f":"E24+O24","v":0},0,0,{"$f":"SUM(D9:G9)","v":0}]
[]
[null,"Undertaking\nI/We undertake that the information supplied in this Renewable Consumption Obligations Compliance Declaration Form (Annexure - 2) For Obligated Designated Consumers is accurate to the best of my knowledge and if any of the information supplied is found to be incorrect and such information results into loss to the Central Government or any of the authority under them or any other person affected, I/we undertake to indemnify such loss.\nI /We agree to extend necessary assistance in case of any enquiry to be made in the matter."]
[null,"For Obligated DC",null,null,null,null,null,null,"For Empaneled AEA Agency"]
[]
[]
[]
[null,"Signature and Seal of Energy Manager / Plant Head",null,null,null,null,null,null,"Seal of Empaneled AEA Agency"]
[null,null,null,null,null,null,null,null,"AEA Number and Signature of Authorised AEA"]
[]
[]
[null,"Case # 1: Electrolysis of Water - Estimation of electricity consumption for production of Green Hydrogen",null,null,null,null,null,null,null,null,"Case # 2: Gasification of Biomass - Estimation of energy consumption for production of Green Hydrogen"]
[null,"To calculate the electricity consumption for producing 1 kg of green hydrogen through the electrolysis process, the following formula shall be used:\nElectricity Consumption per kg of H2 (kWh) = Theoretical Energy Required (39.4 kWh/kg) / Efficiency of Electrolyzer"]
[null,"Particulars ","Unit","Quarter 1","Quarter 2","Quarter 3","Quarter 4","Annual","Remarks",null,"Particulars ","Nomenclature","Unit","Quarter 1","Quarter 2","Quarter 3","Quarter 4","Annual","Remarks"]
[null,"Theoretical Energy Required per kg of H2 (kWh/kg): ","kWh/kg (theoretical)",39.4,null,null,null,null,null,null,"1 kilowatthour (kWh) = 3.6 megajoules(MJ)","-","kWh/MJ ",{"$f":"1/3.6","v":0.27777777777777779}]
[null,"SubTotal of Electrolyzers - Energy Equivalent of GH2 produced / purchased","MU",{"$f":"SUM(_xlfn._xlws.FILTER(Electrolyzers[Quarter 1],Electrolyzers[Particulars]=\"Energy Equivalent of GH2 consumed\",0))","v":0},{"$f":"SUM(_xlfn._xlws.FILTER(Electrolyzers[Quarter 2],Electrolyzers[Particulars]=\"Energy Equivalent of GH2 consumed\",0))","v":0},{"$f":"SUM(_xlfn._xlws.FILTER(Electrolyzers[Quarter 3],Electrolyzers[Particulars]=\"Energy Equivalent of GH2 consumed\",0))","v":0},{"$f":"SUM(_xlfn._xlws.FILTER(Electrolyzers[Quarter 4],Electrolyzers[Particulars]=\"Energy Equivalent of GH2 consumed\",0))","v":0},{"$f":"SUM(_xlfn._xlws.FILTER(Electrolyzers[Annual],Electrolyzers[Particulars]=\"Energy Equivalent of GH2 consumed\",0))","v":0},"-",null,"SubTotal of Biomass Gassification - Energy Equivalent of GH2 produced / purchased",null,"MU",{"$f":"SUM(_xlfn._xlws.FILTER(Gassification[Quarter 1],Gassification[[Particulars ]]=\"Energy Equivalent of GH2 consumed\",0))","v":0},{"$f":"SUM(_xlfn._xlws.FILTER(Gassification[Quarter 2],Gassification[Nomenclature]=\"Energy Equivalent of GH2 consumed\",0))","v":0},{"$f":"SUM(_xlfn._xlws.FILTER(Gassification[Quarter 3],Gassification[Unit]=\"Energy Equivalent of GH2 consumed\",0))","v":0},{"$f":"SUM(_xlfn._xlws.FILTER(Gassification[Quarter 4],Gassification[Quarter 1]=\"Energy Equivalent of GH2 consumed\",0))","v":0},{"$f":"SUM(_xlfn._xlws.FILTER(Gassification[Annual],Gassification[Quarter 2]=\"Energy Equivalent of GH2 consumed\",0))","v":0},"-"]
[]
[null,"Particulars","Unit","Quarter 1","Quarter 2","Quarter 3","Quarter 4","Annual","Remarks",null,"Particulars ","Nomenclature","Unit","Quarter 1","Quarter 2","Quarter 3","Quarter 4","Annual","Remarks"]
[null,"Electrolyzer 1:",null,null,null,null,null,null,"To add rows for additional Electrolysers at the end of this table, or to remove rows for additional Electrolysers, please use the respective command buttons provided above",null,"Biomass_Gassification 1:",null,null,null,null,null,null,null,"To add rows for additional Biomass Gassifiers at the end of this table, or to remove rows for Biomass Gassifiers, please use the respective command buttons provided above"]
[null,"Electrolyzer Efficiency:","%",null,null,null,null,null,"The efficiency of the electrolyzer typically ranges from 60% to 80%. ",null,"Energy Required per kg of H2","E = C / (Y * η)"," MJ/kg H₂",{"$f":"IF(N30*N31=0,0,N29/(N30*N31))","v":0},{"$f":"IF(O30*O31=0,0,O29/(O30*O31))","v":0},0,0,{"$f":"SUM(Gassification[[#This Row],[Quarter 1]:[Quarter 4]])","v":0}]
[null,"Electricity Consumption per kg of H2 (kWh)","kWh/kg (actual)",{"$f":"IF(D28=0,0,$D$23/D28)","v":0},{"$f":"IF(E28=0,0,$D$23/E28)","v":0},0,0,null,null,null,"Energy content of biomass ","C","MJ/kg",null,null,null,null,{"$f":"SUM(Gassification[[#This Row],[Quarter 1]:[Quarter 4]])","v":0}]
[null,"Green Hydrogen produced / purchased","Tons",null,null,null,null,{"$f":"SUM(Electrolyzers[[#This Row],[Quarter 1]:[Quarter 4]])","v":0},"-",null,"Hydrogen yield ","Y","kg H₂/kg biomass"]
[null,"Green Hydrogen sold","Tons",null,null,null,null,{"$f":"SUM(Electrolyzers[[#This Row],[Quarter 1]:[Quarter 4]])","v":0},"Only the quantum of GH2 sold externally and not consumed in the facility should be mentioned here",null,"Gasification Efficiency ","η","%"]
[null,"Energy Equivalent of GH2 consumed","MU",{"$f":"D29*(D30-D31)/1000","v":0},0,0,0,{"$f":"SUM(Electrolyzers[[#This Row],[Quarter 1]:[Quarter 4]])","v":0},"-",null,"Green Hydrogen produced / purchased","PGH","Tons",null,null,null,null,{"$f":"SUM(Gassification[[#This Row],[Quarter 1]:[Quarter 4]])","v":0}]
[null,null,null,null,null,null,null,null,null,null,"Green Hydrogen sold","SGH","Tons",null,null,null,null,{"$f":"SUM(Gassification[[#This Row],[Quarter 1]:[Quarter 4]])","v":0},"Only the quantum of GH2 sold externally and not consumed in the facility should be mentioned here"]
[null,null,null,null,null,null,null,null,null,null,"Energy Equivalent of GH2 Consumed","E*(PGH-SGH)","MU",{"$f":"N28*(N32-N33)*$N$23/1000","v":0},{"$f":"O28*(O32-O33)*$N$23/1000","v":0},0,0,{"$f":"SUM(Gassification[[#This Row],[Quarter 1]:[Quarter 4]])","v":0}]

{"sheet":"StateUTs","index":8,"n_rows":37,"n_cols":7,"rows_kept":37,"cut":false,"hidden":true,"merged":[]}
["Sl No.","State/ UT","State category"]
[35,"Andaman and Nicobar Island","Normal",null,null,"Target Quarter","Type of obligation(s) of Obligated Designated Consumer#"]
[1,"Andhra Pradesh","Normal",null,null,"Q1","Discom"]
[2,"Arunachal Pradesh","NER",null,null,"Q2","Captive Power Plant(CPP)"]
[3,"Assam","NER",null,null,"Q3","Open Access"]
[4,"Bihar","Normal",null,null,"Q4"]
[32,"Chandigarh","Normal"]
[5,"Chhattisgarh","Normal"]
[33,"Daman & Diu and Dadra & Nagar Haveli","Normal"]
[6,"Delhi","Normal"]
[7,"Goa","Normal"]
[8,"Gujarat","Normal"]
[9,"Haryana","Normal"]
[10,"Himachal Pradesh","Hilly"]
[11,"Jammu & Kashmir","Hilly"]
[13,"Jharkhand","Normal"]
[14,"Karnataka","Normal"]
[15,"Kerala","Normal"]
[12,"Ladakh","Hilly"]
[36,"Lakshadweep","Normal"]
[16,"Madhya Pradesh","Normal"]
[17,"Maharashtra","Normal"]
[18,"Manipur","NER"]
[20,"Meghalaya","NER"]
[19,"Mizoram","NER"]
[21,"Nagaland","NER"]
[22,"Odisha","Normal"]
[34,"Puducherry","Normal"]
[23,"Punjab","Normal"]
[24,"Rajasthan","Normal"]
[25,"Sikkim","NER"]
[26,"Tamil Nadu","Normal"]
[27,"Telangana","Normal"]
[28,"Tripura","NER"]
[29,"Uttar Pradesh","Normal"]
[30,"Uttarakhand","Hilly"]
[31,"West Bengal","Normal"]

{"sheet":"DC Sectors with Thresholds","index":9,"n_rows":47,"n_cols":4,"rows_kept":47,"cut":false,"hidden":true,"merged":[]}
[]
["S.No"," Notified Sector","Threshold Energy Consumption in Metric tonne of oil equivalent (mtoe) per year and above.","DC Sectors with Thresholds"]
[3,"Cement:"]
[6,"Chemical"]
[7,"Commercial Building or establishments:"]
[19,"Petrochemical Manufacturing units:"]
[21,"Railway"]
[1,"Aluminum",7500,{"$f":"CONCATENATE(B8,\", Threshold: \", C8, \" toe\")","v":"Aluminum, Threshold: 7500 toe"}]
[2,"Automobile Assembly Unit",3000,{"$f":"CONCATENATE(B9,\", Threshold: \", C9, \" toe\")","v":"Automobile Assembly Unit, Threshold: 3000 toe"}]
[null,"Cement : Integrated Cement Unit",30000,{"$f":"CONCATENATE(B10,\", Threshold: \", C10, \" toe\")","v":"Cement : Integrated Cement Unit, Threshold: 30000 toe"}]
[null,"Cement : Cement grinding Unit",10000,"Cement : Cement grinding Unit, Threshold: 10000 toe"]
[4,"Ceramic",5000,"Ceramic, Threshold: 5000 toe"]
[5,"Chlor_Alkali",12000,"Chlor_Alkali, Threshold: 12000 toe"]
[null,"Chemical : Alkali Chemical (Soda Ash, Potassium Hydroxide)",3000,"Chemical : Alkali Chemical (Soda Ash, Potassium Hydroxide), Threshold: 3000 toe"]
[null,"Chemical : Inorganic Chemicals",3000,"Chemical : Inorganic Chemicals, Threshold: 3000 toe"]
[null,"Chemical : Organic Chemicals",3000,"Chemical : Organic Chemicals, Threshold: 3000 toe"]
[null,"Chemical : Pesticides ",3000,"Chemical : Pesticides , Threshold: 3000 toe"]
[null,"Chemical : Dyes and Pigments",3000,"Chemical : Dyes and Pigments, Threshold: 3000 toe"]
[null,"Chemical : Pharmaceuticals (Active Pharmaceutical Ingredient)",3000,"Chemical : Pharmaceuticals (Active Pharmaceutical Ingredient), Threshold: 3000 toe"]
[null,"Commercial Building or establishments : Hotel",500,"Commercial Building or establishments : Hotel, Threshold: 500 toe"]
[null,"Commercial Building or establishments : Airports",500,"Commercial Building or establishments : Airports, Threshold: 500 toe"]
[8,"Copper",10000,"Copper, Threshold: 10000 toe"]
[9,"Dairy",2500,"Dairy, Threshold: 2500 toe"]
[11,"Fertilizer",30000,{"$f":"CONCATENATE(B24,\", Threshold: \", C24, \" toe\")","v":"Fertilizer, Threshold: 30000 toe"}]
[12,"Forging",1500,{"$f":"CONCATENATE(B25,\", Threshold: \", C25, \" toe\")","v":"Forging, Threshold: 1500 toe"}]
[13,"Foundry",5000,"Foundry, Threshold: 5000 toe"]
[14,"Glass",10000,"Glass, Threshold: 10000 toe"]
[15,"Iron and Steel",20000,"Iron and Steel, Threshold: 20000 toe"]
[16,"Pulp and Paper",75000,"Pulp and Paper, Threshold: 75000 toe"]
[17,"Petroleum Refinery",90000,"Petroleum Refinery, Threshold: 90000 toe"]
[18,"Petrochemical units having gas crackers or naphtha crackers or both","1,00,000","Petrochemical units having gas crackers or naphtha crackers or both, Threshold: 1,00,000 toe"]
[null,"Petrochemical Manufacturing units : Fiber Intermediates",50000,"Petrochemical Manufacturing units : Fiber Intermediates, Threshold: 50000 toe"]
[null,"Petrochemical Manufacturing units : Polymers",10000,"Petrochemical Manufacturing units : Polymers, Threshold: 10000 toe"]
[null,"Petrochemical Manufacturing units : Detergent intermediates",9000,"Petrochemical Manufacturing units : Detergent intermediates, Threshold: 9000 toe"]
[null,"Petrochemical Manufacturing units : Performance Plastics",3000,"Petrochemical Manufacturing units : Performance Plastics, Threshold: 3000 toe"]
[null,"Petrochemical Manufacturing units : Other petrochemical products",6000,"Petrochemical Manufacturing units : Other petrochemical products, Threshold: 6000 toe"]
[null,"Petrochemical Manufacturing units : Synthetic rubbers",15000,"Petrochemical Manufacturing units : Synthetic rubbers, Threshold: 15000 toe"]
[null,"Petrochemical Manufacturing units : Aromatics",20000,"Petrochemical Manufacturing units : Aromatics, Threshold: 20000 toe"]
[20,"Port Trust",500,"Port Trust, Threshold: 500 toe"]
[null,"Railway : All Zonal Railways (Traction)",70000,"Railway : All Zonal Railways (Traction), Threshold: 70000 toe"]
[null,"Railway : Workshops",750,"Railway : Workshops, Threshold: 750 toe"]
[null,"Railway : 8 Production factories of Railways namely ICF, RCF, CLW, BLW, PLW, RW, MCF and RWP",null,"Railway : 8 Production factories of Railways namely ICF, RCF, CLW, BLW, PLW, RW, MCF and RWP "]
[22,"Refractories",3000,{"$f":"CONCATENATE(B43,\", Threshold: \", C43, \" toe\")","v":"Refractories, Threshold: 3000 toe"}]
[23,"Sugar",10000,{"$f":"CONCATENATE(B44,\", Threshold: \", C44, \" toe\")","v":"Sugar, Threshold: 10000 toe"}]
[24,"Textiles",3000,"Textiles, Threshold: 3000 toe"]
[25,"Tyre manufacturer",7000,"Tyre manufacturer, Threshold: 7000 toe"]
[26,"Zinc",20000,"Zinc, Threshold: 20000 toe"]

{"sheet":"Targets","index":10,"n_rows":20,"n_cols":8,"rows_kept":20,"cut":false,"hidden":true,"merged":[]}
[null,null,null,"Wind RE","Hydro RE","Distributed RE","Other RE","Total"]
[null,"State category","FY","Wind renewable energy","Hydro renewable energy","Distributed renewable energy*","Other renewable energy","Total renewable energy"]
[null,"Normal","2024-25",6.7000000000000002E-3,3.8E-3,1.4999999999999999E-2,0.27350000000000002,0.29909999999999998]
[null,"Normal","2025-26",1.4500000000000001E-2,1.2200000000000001E-2,2.1000000000000001E-2,0.28239999999999998,0.3301]
[null,"Normal","2026-27",1.9699999999999999E-2,1.34E-2,2.7E-2,0.2994,0.35949999999999999]
[null,"Normal","2027-28",2.4500000000000001E-2,1.4200000000000001E-2,3.3000000000000002E-2,0.31640000000000001,0.3881]
[null,"Normal","2028-29",2.9499999999999998E-2,1.4200000000000001E-2,3.9E-2,0.33100000000000002,0.41360000000000002]
[null,"Normal","2029-30",3.4799999999999998E-2,1.3299999999999999E-2,4.4999999999999998E-2,0.3402,0.43330000000000002]
[null,"Hilly","2024-25",6.7000000000000002E-3,3.8E-3,7.4999999999999997E-3,0.28100000000000003,0.29909999999999998]
[null,"Hilly","2025-26",1.4500000000000001E-2,1.2200000000000001E-2,1.0500000000000001E-2,0.29289999999999999,0.3301]
[null,"Hilly","2026-27",1.9699999999999999E-2,1.34E-2,1.35E-2,0.31290000000000001,0.35949999999999999]
[null,"Hilly","2027-28",2.4500000000000001E-2,1.4200000000000001E-2,1.6500000000000001E-2,0.33290000000000003,0.3881]
[null,"Hilly","2028-29",2.9499999999999998E-2,1.4200000000000001E-2,1.95E-2,0.35050000000000003,0.41360000000000002]
[null,"Hilly","2029-30",3.4799999999999998E-2,1.3299999999999999E-2,2.2499999999999999E-2,0.36270000000000002,0.43330000000000002]
[null,"NER","2024-25",6.7000000000000002E-3,3.8E-3,7.4999999999999997E-3,0.28100000000000003,0.29909999999999998]
[null,"NER","2025-26",1.4500000000000001E-2,1.2200000000000001E-2,1.0500000000000001E-2,0.29289999999999999,0.3301]
[null,"NER","2026-27",1.9699999999999999E-2,1.34E-2,1.35E-2,0.31290000000000001,0.35949999999999999]
[null,"NER","2027-28",2.4500000000000001E-2,1.4200000000000001E-2,1.6500000000000001E-2,0.33290000000000003,0.3881]
[null,"NER","2028-29",2.9499999999999998E-2,1.4200000000000001E-2,1.95E-2,0.35050000000000003,0.41360000000000002]
[null,"NER","2029-30",3.4799999999999998E-2,1.3299999999999999E-2,2.2499999999999999E-2,0.36270000000000002,0.43330000000000002]

{"sheet":"Supporting Sheet","index":11,"n_rows":23,"n_cols":14,"rows_kept":23,"cut":false,"hidden":true,"merged":[[13,9,14,9],[7,9,8,9],[9,9,10,9],[11,9,12,9],[3,9,4,9],[5,9,6,9]]}
[]
[]
[null,null,"Source of RE",null,"Power Market","Mode of compliance","Type of Plant","Non- Fossil Energy","TYPE OF CONTRACT","Source","Voltage level","Nature of Load",null,"Type of obligation(s) of Obligated Designated Consumer"]
[null,null,"Solar PV and solar thermal power",null,"Power Exchange","RE Own Generation","On Grid","RE Own Generation","Long Term","Thermal","400KV","Base Load",null,"Distribution licensee (DISCOM)"]
[null,null,"Wind Energy",null,"Bilateral ","RE Purchase","Off Grid","RE Purchase","Medium Term",null,"132KV","Seasonal Load",null,"Open Access(OA)"]
[null,null,"All Hydro Power including Large Hydro Projects (LHPs), Pumped Storage Projects (PSPs) and Small Hydro Projects (SHPs).",null,"N/A","REC",null,"REC","Short Term","Wind","220KV","Diurnal Load",null,"Captive power plant(CPP)"]
[null,null,"Wind Energy",null,null,"Energy Equivalent of Green Hydrogen consumed (in SCM)",null,"Energy Equivalent of Green Hydrogen consumed (in SCM)",null,null,"66KV"]
[null,null,"All Hydro Power including Large Hydro Projects (LHPs), Pumped Storage Projects (PSPs) and Small Hydro Projects (SHPs).",null,null,"Energy Equivalent of Green Ammonia consumed (in Tons)",null,"Energy Equivalent of Green Ammonia consumed (in Tons)",null,"Nuclear","33KV"]
[null,null,"Non-fossil fuel (including Bagasse) based co-generation projects.",null,null,null,null,null,null,null,"11KV"]
[null,null,"Biomass Power based on Rankine cycle and combined cycle technologies. ",null,null,null,null,null,null,"Small hydro"]
[null,null,"Biomass Gasifier based power. "]
[null,null,"Biogas based power. ",null,null,null,null,null,null,"Solar"]
[null,null,"Waste to Energy"]
[null,null,"Geothermal Power ",null,null,null,null,null,null,"Thermal"]
[null,null,"Tidal Power"]
[null,null,"Other hybrid technologies including renewable-renewable or renewable component of renewable-conventional sources for which renewable technology is approved by MNRE."]
[null,null,"Purchase of green hydrogen or green ammonia for use as energy and feedstock."]
[null,null,"Any other source as may be recognized or approved by Central Government / MNRE from time to time"]
[]
[]
[]
[]
[null,null,"Base load, diurnal load, and seasonal load are all related to electricity demand, but they differ in the following ways: \nBase load\nThe minimum amount of electricity required over a period of time, typically at a steady rate. Base load power plants are designed to run continuously and provide a consistent amount of electricity to meet the minimum demand on the power grid. \nDiurnal load\nThe time-of-day power demand, which typically varies throughout the day. Electricity demand is usually highest during business hours and lowest late at night and early in the morning. \nSeasonal load\nThe demand for a product or service that varies throughout the year, with highs and lows at specific times."]